Workbook

Sheet input
B1: =$K$8*100+$K$9 ->  | H1: =$K$8 -> ▼ | K1: =$K$9 -> ▼ | M1: =IF(COUNTBLANK($M$18:$M$77)<60,1,IF(COUNTBLANK($M$18:$M$77)=60,2)) -> 2 | O1: =IF(AND(30-COUNTBLANK($M$18:$M$47)=$K$11,30-COUNTBLANK($M$48:$M$77)=$K$12),1,2) -> 1 | Q1: =30-COUNTBLANK($M$18:$M$47) -> 0 | R1: =30-COUNTBLANK($M$48:$M$77) -> 0
J8: 学年 | K8: ▼
J9: 学級 | K9: ▼
B11: =30-COUNTBLANK($M$18:$M$47) -> 0 | J11: 男子 | K11: 0 | M11: =IF(SUM($K$11:$K$12)=0,"",IF(O4=1,"","男子"&$K$11&"人 "&"女子"&$K$12&"人の")) ->  | P11: =IF(COUNTBLANK($M$18:$M$77)=60,"まず氏名欄の入力を行って下さい！",IF($O$1=1,"全員の氏名の入力が完了してます",IF(OR($K$11<(30-COUNTBLANK($M$18:$M$47)),$K$12<(30-COUNTBLANK($M$48:$M$77))),"氏名の数が多くなっています！",IF(OR($K$11>(30-COUNTBLANK($M$18:$M$47)),$K$12>(30-COUNTBLANK($M$48:$M$77))),"氏名の未入力があります！",IF(OR($K$11-(30-COUNTBLANK($M$18:$M$47))<0,$K$11-(30-COUNTBLANK($M$18:$M$47))>0),"男子の入力した氏名の数が違います！",IF(OR($K$12-(30-COUNTBLANK($M$48:$M$77))<0,$K$12-COUNTBLANK($M$48:$M$77)>0),"女子の入力した氏名の数が違います","")))))) -> まず氏名欄の入力を行って下さい！
J12: 女子 | K12: 0 | M12: =IF(SUM($K$11:$K$12)=0,"",IF(O4=1,"","氏名の入力が必要です！")) -> 
J13: 計 | K13: =SUM(K11:K12) -> 0
M15: ※氏名欄に名前を入力していないのに児童データが表示されているときは、氏名欄に空白が入っていますので、空白を削除して下さい。
J16: 児童データ | M16: ※氏名欄が空白の場合、 エラーで動作しません。 | N16: アンケートデータ入力 | Z16: 測定種目結果入力
B17: ID | G17: 学齢 | H17: 学年 | I17: 組 | J17: 性別 番号 | K17: 整理 番号 | L17: 性別 | M17: 氏名 水色は男子 ピンクは女子 | N17: Q4 | O17: Q5 | P17: Q6 | Q17: Q7 | R17: Q8 | S17: Q9 | T17: Q11 | U17: Q12 | V17: Q13 | W17: Q14 | X17: Q15 | Y17: Q16 | Z17: 握力 (kg) | AA17: 上体 起こ し (回) | AB17: 長座 体前屈 (cm) | AC17: 反復 横とび (回) | AD17: 持久走 （中高のみ） | AE17: ２０ｍ シャトルラン(回) | AF17: ５０ｍ走 (秒) | AG17: 立ち幅とび (cm) | AH17: ソフト ボール 投げ (m)
A18: 1 | B18: =IF(M18="","",H18*100000+I18*1000+J18*100+K18) ->  | G18: =IF(M18="","",VLOOKUP($H$1,vldata!$A$2:$B$7,2)) ->  | H18: =IF(M18="","",$H$1) ->  | I18: =IF(M18="","",$K$1) ->  | J18: =IF(M18="","",1) ->  | K18: =IF(M18="","",A18) ->  | L18: =IF(M18="","","男子") ->  | BP18: =kenkijun!B2 -> 男子
A19: 2 | G19: =IF(M19="","",VLOOKUP($H$1,vldata!$A$2:$B$7,2)) ->  | BP19: =kenkijun!A3 -> 学年 | BQ19: =kenkijun!B3 -> 握力 | BR19: =kenkijun!C3 -> 上体 | BS19: =kenkijun!D3 -> 長座 | BT19: =kenkijun!E3 -> 反復 | BU19: =kenkijun!F3 -> 持久走 | BV19: =kenkijun!G3 -> シャ | BW19: =kenkijun!H3 -> 50m | BX19: =kenkijun!I3 -> 立幅 | BY19: =kenkijun!J3 -> ソフ | BZ19: =kenkijun!K3 -> 全体 | CA19: =kenkijun!L3 -> 最高
A20: 3 | G20: =IF(M20="","",VLOOKUP($H$1,vldata!$A$2:$B$7,2)) ->  | BP20: =kenkijun!A4 -> 1 | BQ20: =kenkijun!B4 -> 0 | BR20: =kenkijun!C4 -> 0 | BS20: =kenkijun!D4 -> 0 | BT20: =kenkijun!E4 -> 0 | BV20: =kenkijun!G4 -> 0 | BW20: =kenkijun!H4 -> 0 | BX20: =kenkijun!I4 -> 0 | BY20: =kenkijun!J4 -> 0 | BZ20: =kenkijun!K4 -> 0
A21: 4 | G21: =IF(M21="","",VLOOKUP($H$1,vldata!$A$2:$B$7,2)) ->  | BP21: =kenkijun!A5 -> 2 | BQ21: =kenkijun!B5 -> 0 | BR21: =kenkijun!C5 -> 0 | BS21: =kenkijun!D5 -> 0 | BT21: =kenkijun!E5 -> 0 | BV21: =kenkijun!G5 -> 0 | BW21: =kenkijun!H5 -> 0 | BX21: =kenkijun!I5 -> 0 | BY21: =kenkijun!J5 -> 0 | BZ21: =kenkijun!K5 -> 0
A22: 5 | G22: =IF(M22="","",VLOOKUP($H$1,vldata!$A$2:$B$7,2)) ->  | BP22: =kenkijun!A6 -> 3 | BQ22: =kenkijun!B6 -> 0 | BR22: =kenkijun!C6 -> 0 | BS22: =kenkijun!D6 -> 0 | BT22: =kenkijun!E6 -> 0 | BV22: =kenkijun!G6 -> 0 | BW22: =kenkijun!H6 -> 0 | BX22: =kenkijun!I6 -> 0 | BY22: =kenkijun!J6 -> 0 | BZ22: =kenkijun!K6 -> 0
A23: 6 | G23: =IF(M23="","",VLOOKUP($H$1,vldata!$A$2:$B$7,2)) ->  | BP23: =kenkijun!A7 -> 4 | BQ23: =kenkijun!B7 -> 19.008 | BR23: =kenkijun!C7 -> 26.243 | BS23: =kenkijun!D7 -> 42.933 | BT23: =kenkijun!E7 -> 48.53 | BV23: =kenkijun!G7 -> 70.247 | BW23: =kenkijun!H7 -> 8.079 | BX23: =kenkijun!I7 -> 177.608 | BY23: =kenkijun!J7 -> 30.269 | BZ23: =kenkijun!K7 -> 60.706
A24: 7 | G24: =IF(M24="","",VLOOKUP($H$1,vldata!$A$2:$B$7,2)) ->  | BP24: =kenkijun!A8 -> 5 | BQ24: =kenkijun!B8 -> 22.216 | BR24: =kenkijun!C8 -> 28.218 | BS24: =kenkijun!D8 -> 45.312 | BT24: =kenkijun!E8 -> 52.679 | BV24: =kenkijun!G8 -> 82.341 | BW24: =kenkijun!H8 -> 7.729 | BX24: =kenkijun!I8 -> 187 | BY24: =kenkijun!J8 -> 35.152 | BZ24: =kenkijun!K8 -> 66.957
A25: 8 | G25: =IF(M25="","",VLOOKUP($H$1,vldata!$A$2:$B$7,2)) ->  | BP25: =kenkijun!A9 -> 6 | BQ25: =kenkijun!B9 -> 26.779 | BR25: =kenkijun!C9 -> 29.423 | BS25: =kenkijun!D9 -> 47.144 | BT25: =kenkijun!E9 -> 55.574 | BV25: =kenkijun!G9 -> 94.065 | BW25: =kenkijun!H9 -> 7.364 | BX25: =kenkijun!I9 -> 200.732 | BY25: =kenkijun!J9 -> 40.753 | BZ25: =kenkijun!K9 -> 73.194
A26: 9 | G26: =IF(M26="","",VLOOKUP($H$1,vldata!$A$2:$B$7,2)) ->  | BP26: =kenkijun!A10 -> 1 | BQ26: =kenkijun!B10 -> 0 | BR26: =kenkijun!C10 -> 0 | BS26: =kenkijun!D10 -> 0 | BT26: =kenkijun!E10 -> 0 | BV26: =kenkijun!G10 -> 0 | BW26: =kenkijun!H10 -> 0 | BX26: =kenkijun!I10 -> 0 | BY26: =kenkijun!J10 -> 0 | BZ26: =kenkijun!K10 -> 0 | CA26: =kenkijun!L10 -> 最低
A27: 10 | G27: =IF(M27="","",VLOOKUP($H$1,vldata!$A$2:$B$7,2)) ->  | BP27: =kenkijun!A11 -> 2 | BQ27: =kenkijun!B11 -> 0 | BR27: =kenkijun!C11 -> 0 | BS27: =kenkijun!D11 -> 0 | BT27: =kenkijun!E11 -> 0 | BV27: =kenkijun!G11 -> 0 | BW27: =kenkijun!H11 -> 0 | BX27: =kenkijun!I11 -> 0 | BY27: =kenkijun!J11 -> 0 | BZ27: =kenkijun!K11 -> 0
A28: 11 | G28: =IF(M28="","",VLOOKUP($H$1,vldata!$A$2:$B$7,2)) ->  | BP28: =kenkijun!A12 -> 3 | BQ28: =kenkijun!B12 -> 0 | BR28: =kenkijun!C12 -> 0 | BS28: =kenkijun!D12 -> 0 | BT28: =kenkijun!E12 -> 0 | BV28: =kenkijun!G12 -> 0 | BW28: =kenkijun!H12 -> 0 | BX28: =kenkijun!I12 -> 0 | BY28: =kenkijun!J12 -> 0 | BZ28: =kenkijun!K12 -> 0
A29: 12 | G29: =IF(M29="","",VLOOKUP($H$1,vldata!$A$2:$B$7,2)) ->  | BP29: =kenkijun!A13 -> 4 | BQ29: =kenkijun!B13 -> 7.39 | BR29: =kenkijun!C13 -> 4.82 | BS29: =kenkijun!D13 -> 14.85 | BT29: =kenkijun!E13 -> 20.04 | BV29: =kenkijun!G13 -> 0.28 | BW29: =kenkijun!H13 -> 11.89 | BX29: =kenkijun!I13 -> 103.83 | BY29: =kenkijun!J13 -> 4.11 | BZ29: =kenkijun!K13 -> 29.33
A30: 13 | G30: =IF(M30="","",VLOOKUP($H$1,vldata!$A$2:$B$7,2)) ->  | BP30: =kenkijun!A14 -> 5 | BQ30: =kenkijun!B14 -> 8.23 | BR30: =kenkijun!C14 -> 6.24 | BS30: =kenkijun!D14 -> 15.49 | BT30: =kenkijun!E14 -> 24.3 | BV30: =kenkijun!G14 -> 5.27 | BW30: =kenkijun!H14 -> 11.54 | BX30: =kenkijun!I14 -> 107.45 | BY30: =kenkijun!J14 -> 5.33 | BZ30: =kenkijun!K14 -> 33.25
A31: 14 | G31: =IF(M31="","",VLOOKUP($H$1,vldata!$A$2:$B$7,2)) ->  | BP31: =kenkijun!A15 -> 6 | BQ31: =kenkijun!B15 -> 9.13 | BR31: =kenkijun!C15 -> 9.11 | BS31: =kenkijun!D15 -> 17.47 | BT31: =kenkijun!E15 -> 27.75 | BV31: =kenkijun!G15 -> 11.37 | BW31: =kenkijun!H15 -> 10.99 | BX31: =kenkijun!I15 -> 116.52 | BY31: =kenkijun!J15 -> 6.75 | BZ31: =kenkijun!K15 -> 38.71
A32: 15 | G32: =IF(M32="","",VLOOKUP($H$1,vldata!$A$2:$B$7,2)) ->  | BP32: =kenkijun!A16 -> 1 | BQ32: =kenkijun!B16 -> 2 | BR32: =kenkijun!C16 -> 3 | BS32: =kenkijun!D16 -> 4 | BT32: =kenkijun!E16 -> 5 | BU32: =kenkijun!F16 -> 6 | BV32: =kenkijun!G16 -> 7 | BW32: =kenkijun!H16 -> 8 | BX32: =kenkijun!I16 -> 9 | BY32: =kenkijun!J16 -> 10 | BZ32: =kenkijun!K16 -> 11
A33: 16 | G33: =IF(M33="","",VLOOKUP($H$1,vldata!$A$2:$B$7,2)) ->  | BP33: =kenkijun!B17 -> 女子
A34: 17 | G34: =IF(M34="","",VLOOKUP($H$1,vldata!$A$2:$B$7,2)) ->  | BP34: =kenkijun!A18 -> 学年 | BQ34: =kenkijun!B18 -> 握力 | BR34: =kenkijun!C18 -> 上体 | BS34: =kenkijun!D18 -> 長座 | BT34: =kenkijun!E18 -> 反復 | BU34: =kenkijun!F18 -> 持久走 | BV34: =kenkijun!G18 -> シャ | BW34: =kenkijun!H18 -> 50m | BX34: =kenkijun!I18 -> 立幅 | BY34: =kenkijun!J18 -> ソフ | BZ34: =kenkijun!K18 -> 全体 | CA34: =kenkijun!L18 -> 最高
A35: 18 | G35: =IF(M35="","",VLOOKUP($H$1,vldata!$A$2:$B$7,2)) ->  | BP35: =kenkijun!A19 -> 1 | BQ35: =kenkijun!B19 -> 0 | BR35: =kenkijun!C19 -> 0 | BS35: =kenkijun!D19 -> 0 | BT35: =kenkijun!E19 -> 0 | BV35: =kenkijun!G19 -> 0 | BW35: =kenkijun!H19 -> 0 | BX35: =kenkijun!I19 -> 0 | BY35: =kenkijun!J19 -> 0 | BZ35: =kenkijun!K19 -> 0
A36: 19 | G36: =IF(M36="","",VLOOKUP($H$1,vldata!$A$2:$B$7,2)) ->  | BP36: =kenkijun!A20 -> 2 | BQ36: =kenkijun!B20 -> 0 | BR36: =kenkijun!C20 -> 0 | BS36: =kenkijun!D20 -> 0 | BT36: =kenkijun!E20 -> 0 | BV36: =kenkijun!G20 -> 0 | BW36: =kenkijun!H20 -> 0 | BX36: =kenkijun!I20 -> 0 | BY36: =kenkijun!J20 -> 0 | BZ36: =kenkijun!K20 -> 0
A37: 20 | G37: =IF(M37="","",VLOOKUP($H$1,vldata!$A$2:$B$7,2)) ->  | BP37: =kenkijun!A21 -> 3 | BQ37: =kenkijun!B21 -> 0 | BR37: =kenkijun!C21 -> 0 | BS37: =kenkijun!D21 -> 0 | BT37: =kenkijun!E21 -> 0 | BV37: =kenkijun!G21 -> 0 | BW37: =kenkijun!H21 -> 0 | BX37: =kenkijun!I21 -> 0 | BY37: =kenkijun!J21 -> 0 | BZ37: =kenkijun!K21 -> 0
A38: 21 | G38: =IF(M38="","",VLOOKUP($H$1,vldata!$A$2:$B$7,2)) ->  | BP38: =kenkijun!A22 -> 4 | BQ38: =kenkijun!B22 -> 18.474 | BR38: =kenkijun!C22 -> 24.595 | BS38: =kenkijun!D22 -> 46.8 | BT38: =kenkijun!E22 -> 45.897 | BV38: =kenkijun!G22 -> 55.823 | BW38: =kenkijun!H22 -> 8.502 | BX38: =kenkijun!I22 -> 167.745 | BY38: =kenkijun!J22 -> 18.919 | BZ38: =kenkijun!K22 -> 61.582
A39: 22 | G39: =IF(M39="","",VLOOKUP($H$1,vldata!$A$2:$B$7,2)) ->  | BP39: =kenkijun!A23 -> 5 | BQ39: =kenkijun!B23 -> 22.232 | BR39: =kenkijun!C23 -> 26.043 | BS39: =kenkijun!D23 -> 49.928 | BT39: =kenkijun!E23 -> 50.411 | BV39: =kenkijun!G23 -> 67.765 | BW39: =kenkijun!H23 -> 8.14 | BX39: =kenkijun!I23 -> 178.293 | BY39: =kenkijun!J23 -> 22.923 | BZ39: =kenkijun!K23 -> 68.687
A40: 23 | G40: =IF(M40="","",VLOOKUP($H$1,vldata!$A$2:$B$7,2)) ->  | BP40: =kenkijun!A24 -> 6 | BQ40: =kenkijun!B24 -> 25.455 | BR40: =kenkijun!C24 -> 26.988 | BS40: =kenkijun!D24 -> 52.218 | BT40: =kenkijun!E24 -> 52.558 | BV40: =kenkijun!G24 -> 75.322 | BW40: =kenkijun!H24 -> 7.861 | BX40: =kenkijun!I24 -> 188.246 | BY40: =kenkijun!J24 -> 26.143 | BZ40: =kenkijun!K24 -> 73.67
A41: 24 | G41: =IF(M41="","",VLOOKUP($H$1,vldata!$A$2:$B$7,2)) ->  | BP41: =kenkijun!A25 -> 1 | BQ41: =kenkijun!B25 -> 0 | BR41: =kenkijun!C25 -> 0 | BS41: =kenkijun!D25 -> 0 | BT41: =kenkijun!E25 -> 0 | BV41: =kenkijun!G25 -> 0 | BW41: =kenkijun!H25 -> 0 | BX41: =kenkijun!I25 -> 0 | BY41: =kenkijun!J25 -> 0 | BZ41: =kenkijun!K25 -> 0 | CA41: =kenkijun!L25 -> 最低
A42: 25 | G42: =IF(M42="","",VLOOKUP($H$1,vldata!$A$2:$B$7,2)) ->  | BP42: =kenkijun!A26 -> 2 | BQ42: =kenkijun!B26 -> 0 | BR42: =kenkijun!C26 -> 0 | BS42: =kenkijun!D26 -> 0 | BT42: =kenkijun!E26 -> 0 | BV42: =kenkijun!G26 -> 0 | BW42: =kenkijun!H26 -> 0 | BX42: =kenkijun!I26 -> 0 | BY42: =kenkijun!J26 -> 0 | BZ42: =kenkijun!K26 -> 0
A43: 26 | G43: =IF(M43="","",VLOOKUP($H$1,vldata!$A$2:$B$7,2)) ->  | BP43: =kenkijun!A27 -> 3 | BQ43: =kenkijun!B27 -> 0 | BR43: =kenkijun!C27 -> 0 | BS43: =kenkijun!D27 -> 0 | BT43: =kenkijun!E27 -> 0 | BV43: =kenkijun!G27 -> 0 | BW43: =kenkijun!H27 -> 0 | BX43: =kenkijun!I27 -> 0 | BY43: =kenkijun!J27 -> 0 | BZ43: =kenkijun!K27 -> 0
A44: 27 | G44: =IF(M44="","",VLOOKUP($H$1,vldata!$A$2:$B$7,2)) ->  | BP44: =kenkijun!A28 -> 4 | BQ44: =kenkijun!B28 -> 6.93 | BR44: =kenkijun!C28 -> 5.17 | BS44: =kenkijun!D28 -> 17.94 | BT44: =kenkijun!E28 -> 19.22 | BV44: =kenkijun!G28 -> 1.1 | BW44: =kenkijun!H28 -> 11.98 | BX44: =kenkijun!I28 -> 96.52 | BY44: =kenkijun!J28 -> 2.75 | BZ44: =kenkijun!K28 -> 30.28
A45: 28 | G45: =IF(M45="","",VLOOKUP($H$1,vldata!$A$2:$B$7,2)) ->  | BP45: =kenkijun!A29 -> 5 | BQ45: =kenkijun!B29 -> 7.95 | BR45: =kenkijun!C29 -> 7.21 | BS45: =kenkijun!D29 -> 19.44 | BT45: =kenkijun!E29 -> 24.03 | BV45: =kenkijun!G29 -> 5.05 | BW45: =kenkijun!H29 -> 11.47 | BX45: =kenkijun!I29 -> 103.59 | BY45: =kenkijun!J29 -> 3.35 | BZ45: =kenkijun!K29 -> 36.09
A46: 29 | G46: =IF(M46="","",VLOOKUP($H$1,vldata!$A$2:$B$7,2)) ->  | BP46: =kenkijun!A30 -> 6 | BQ46: =kenkijun!B30 -> 9.73 | BR46: =kenkijun!C30 -> 8.34 | BS46: =kenkijun!D30 -> 21.36 | BT46: =kenkijun!E30 -> 26.88 | BV46: =kenkijun!G30 -> 7.39 | BW46: =kenkijun!H30 -> 11.08 | BX46: =kenkijun!I30 -> 108.77 | BY46: =kenkijun!J30 -> 3.61 | BZ46: =kenkijun!K30 -> 40.37
A47: 30 | G47: =IF(M47="","",VLOOKUP($H$1,vldata!$A$2:$B$7,2)) -> 
A48: 1 | G48: =IF(M48="","",VLOOKUP($H$1,vldata!$A$2:$B$7,2)) ->  | J48: =IF(M48="","",2) ->  | L48: =IF(M48="","","女子") -> 
A49: 2 | G49: =IF(M49="","",VLOOKUP($H$1,vldata!$A$2:$B$7,2)) -> 
A50: 3 | B50: =IF(M50="","",H50*100000+I50*1000+J50*100+K50) ->  | G50: =IF(M50="","",VLOOKUP($H$1,vldata!$A$2:$B$7,2)) ->  | H50: =IF(M50="","",$H$1) ->  | I50: =IF(M50="","",$K$1) ->  | K50: =IF(M50="","",A50) -> 
A51: 4 | G51: =IF(M51="","",VLOOKUP($H$1,vldata!$A$2:$B$7,2)) -> 
A52: 5 | G52: =IF(M52="","",VLOOKUP($H$1,vldata!$A$2:$B$7,2)) -> 
A53: 6 | G53: =IF(M53="","",VLOOKUP($H$1,vldata!$A$2:$B$7,2)) -> 
A54: 7 | G54: =IF(M54="","",VLOOKUP($H$1,vldata!$A$2:$B$7,2)) -> 
A55: 8 | G55: =IF(M55="","",VLOOKUP($H$1,vldata!$A$2:$B$7,2)) -> 
A56: 9 | G56: =IF(M56="","",VLOOKUP($H$1,vldata!$A$2:$B$7,2)) -> 
A57: 10 | G57: =IF(M57="","",VLOOKUP($H$1,vldata!$A$2:$B$7,2)) -> 
A58: 11 | G58: =IF(M58="","",VLOOKUP($H$1,vldata!$A$2:$B$7,2)) -> 
A59: 12 | G59: =IF(M59="","",VLOOKUP($H$1,vldata!$A$2:$B$7,2)) -> 
A60: 13 | G60: =IF(M60="","",VLOOKUP($H$1,vldata!$A$2:$B$7,2)) -> 
A61: 14 | G61: =IF(M61="","",VLOOKUP($H$1,vldata!$A$2:$B$7,2)) -> 
A62: 15 | G62: =IF(M62="","",VLOOKUP($H$1,vldata!$A$2:$B$7,2)) -> 
A63: 16 | G63: =IF(M63="","",VLOOKUP($H$1,vldata!$A$2:$B$7,2)) -> 
A64: 17 | G64: =IF(M64="","",VLOOKUP($H$1,vldata!$A$2:$B$7,2)) -> 
A65: 18 | G65: =IF(M65="","",VLOOKUP($H$1,vldata!$A$2:$B$7,2)) -> 
A66: 19 | G66: =IF(M66="","",VLOOKUP($H$1,vldata!$A$2:$B$7,2)) -> 
A67: 20 | G67: =IF(M67="","",VLOOKUP($H$1,vldata!$A$2:$B$7,2)) -> 
A68: 21 | G68: =IF(M68="","",VLOOKUP($H$1,vldata!$A$2:$B$7,2)) -> 
A69: 22 | G69: =IF(M69="","",VLOOKUP($H$1,vldata!$A$2:$B$7,2)) -> 
A70: 23 | G70: =IF(M70="","",VLOOKUP($H$1,vldata!$A$2:$B$7,2)) -> 
A71: 24 | G71: =IF(M71="","",VLOOKUP($H$1,vldata!$A$2:$B$7,2)) -> 
A72: 25 | G72: =IF(M72="","",VLOOKUP($H$1,vldata!$A$2:$B$7,2)) -> 
A73: 26 | G73: =IF(M73="","",VLOOKUP($H$1,vldata!$A$2:$B$7,2)) -> 
A74: 27 | G74: =IF(M74="","",VLOOKUP($H$1,vldata!$A$2:$B$7,2)) -> 
A75: 28 | G75: =IF(M75="","",VLOOKUP($H$1,vldata!$A$2:$B$7,2)) -> 
A76: 29 | G76: =IF(M76="","",VLOOKUP($H$1,vldata!$A$2:$B$7,2)) -> 
A77: 30 | G77: =IF(M77="","",VLOOKUP($H$1,vldata!$A$2:$B$7,2)) -> 

Sheet input_save
B1: =$K$8*100+$K$9 -> 0 | H1: =$K$8 -> 0 | K1: =$K$9 -> 0 | M1: =IF(COUNTBLANK($M$18:$M$77)<60,1,IF(COUNTBLANK($M$18:$M$77)=60,2)) -> 2 | O1: =IF(AND(30-COUNTBLANK($M$18:$M$47)=$K$11,30-COUNTBLANK($M$48:$M$77)=$K$12),1,2) -> 1 | Q1: =30-COUNTBLANK($M$18:$M$47) -> 0 | R1: =30-COUNTBLANK($M$48:$M$77) -> 0
J8: 学年
J9: 学級
B11: =30-COUNTBLANK($M$18:$M$47) -> 0 | J11: 男子 | K11: 0 | M11: =IF(SUM($K$11:$K$12)=0,"",IF(O4=1,"","男子"&$K$11&"人 "&"女子"&$K$12&"人の")) ->  | P11: =IF(COUNTBLANK($M$18:$M$77)=60,"まず氏名欄の入力を行って下さい！",IF($O$1=1,"全員の氏名の入力が完了してます",IF(OR($K$11<(30-COUNTBLANK($M$18:$M$47)),$K$12<(30-COUNTBLANK($M$48:$M$77))),"氏名の数が多くなっています！",IF(OR($K$11>(30-COUNTBLANK($M$18:$M$47)),$K$12>(30-COUNTBLANK($M$48:$M$77))),"氏名の未入力があります！",IF(OR($K$11-(30-COUNTBLANK($M$18:$M$47))<0,$K$11-(30-COUNTBLANK($M$18:$M$47))>0),"男子の入力した氏名の数が違います！",IF(OR($K$12-(30-COUNTBLANK($M$48:$M$77))<0,$K$12-COUNTBLANK($M$48:$M$77)>0),"女子の入力した氏名の数が違います","")))))) -> まず氏名欄の入力を行って下さい！
J12: 女子 | K12: 0 | M12: =IF(SUM($K$11:$K$12)=0,"",IF(O4=1,"","氏名の入力が必要です！")) -> 
J13: 計 | K13: =SUM(K11:K12) -> 0
M15: ※氏名欄に名前を入力していないのに児童データが表示されているときは、氏名欄に空白が入っていますので、空白を削除して下さい。
J16: 児童データ | M16: ※氏名欄が空白の場合、 エラーで動作しません。 | N16: アンケートデータ入力 | Z16: 測定種目結果入力
B17: ID | G17: 学齢 | H17: 学年 | I17: 組 | J17: 性別 番号 | K17: 整理 番号 | L17: 性別 | M17: 氏名 水色は男子 ピンクは女子 | N17: Q4 | O17: Q5 | P17: Q6 | Q17: Q7 | R17: Q8 | S17: Q9 | T17: Q11 | U17: Q12 | V17: Q13 | W17: Q14 | X17: Q15 | Y17: Q16 | Z17: 握力 (kg) | AA17: 上体 起こ し (回) | AB17: 長座 体前屈 (cm) | AC17: 反復 横とび (回) | AD17: 持久走 （中高のみ） | AE17: ２０ｍ シャトルラン(回) | AF17: ５０ｍ走 (秒) | AG17: 立ち幅とび (cm) | AH17: ソフト ボール 投げ (m)
A18: 1 | B18: =IF(M18="","",H18*100000+I18*1000+J18*100+K18) ->  | G18: =IF(M18="","",VLOOKUP($H$1,vldata!$A$2:$B$7,2)) ->  | H18: =IF(M18="","",$H$1) ->  | I18: =IF(M18="","",$K$1) ->  | J18: =IF(M18="","",1) ->  | K18: =IF(M18="","",A18) ->  | L18: =IF(M18="","","男子") ->  | BP18: =kenkijun!B2 -> 男子
A19: 2 | G19: =IF(M19="","",VLOOKUP($H$1,vldata!$A$2:$B$7,2)) ->  | BP19: =kenkijun!A3 -> 学年 | BQ19: =kenkijun!B3 -> 握力 | BR19: =kenkijun!C3 -> 上体 | BS19: =kenkijun!D3 -> 長座 | BT19: =kenkijun!E3 -> 反復 | BU19: =kenkijun!F3 -> 持久走 | BV19: =kenkijun!G3 -> シャ | BW19: =kenkijun!H3 -> 50m | BX19: =kenkijun!I3 -> 立幅 | BY19: =kenkijun!J3 -> ソフ | BZ19: =kenkijun!K3 -> 全体 | CA19: =kenkijun!L3 -> 最高
A20: 3 | G20: =IF(M20="","",VLOOKUP($H$1,vldata!$A$2:$B$7,2)) ->  | BP20: =kenkijun!A4 -> 1 | BQ20: =kenkijun!B4 -> 0 | BR20: =kenkijun!C4 -> 0 | BS20: =kenkijun!D4 -> 0 | BT20: =kenkijun!E4 -> 0 | BV20: =kenkijun!G4 -> 0 | BW20: =kenkijun!H4 -> 0 | BX20: =kenkijun!I4 -> 0 | BY20: =kenkijun!J4 -> 0 | BZ20: =kenkijun!K4 -> 0
A21: 4 | G21: =IF(M21="","",VLOOKUP($H$1,vldata!$A$2:$B$7,2)) ->  | BP21: =kenkijun!A5 -> 2 | BQ21: =kenkijun!B5 -> 0 | BR21: =kenkijun!C5 -> 0 | BS21: =kenkijun!D5 -> 0 | BT21: =kenkijun!E5 -> 0 | BV21: =kenkijun!G5 -> 0 | BW21: =kenkijun!H5 -> 0 | BX21: =kenkijun!I5 -> 0 | BY21: =kenkijun!J5 -> 0 | BZ21: =kenkijun!K5 -> 0
A22: 5 | G22: =IF(M22="","",VLOOKUP($H$1,vldata!$A$2:$B$7,2)) ->  | BP22: =kenkijun!A6 -> 3 | BQ22: =kenkijun!B6 -> 0 | BR22: =kenkijun!C6 -> 0 | BS22: =kenkijun!D6 -> 0 | BT22: =kenkijun!E6 -> 0 | BV22: =kenkijun!G6 -> 0 | BW22: =kenkijun!H6 -> 0 | BX22: =kenkijun!I6 -> 0 | BY22: =kenkijun!J6 -> 0 | BZ22: =kenkijun!K6 -> 0
A23: 6 | G23: =IF(M23="","",VLOOKUP($H$1,vldata!$A$2:$B$7,2)) ->  | BP23: =kenkijun!A7 -> 4 | BQ23: =kenkijun!B7 -> 19.008 | BR23: =kenkijun!C7 -> 26.243 | BS23: =kenkijun!D7 -> 42.933 | BT23: =kenkijun!E7 -> 48.53 | BV23: =kenkijun!G7 -> 70.247 | BW23: =kenkijun!H7 -> 8.079 | BX23: =kenkijun!I7 -> 177.608 | BY23: =kenkijun!J7 -> 30.269 | BZ23: =kenkijun!K7 -> 60.706
A24: 7 | G24: =IF(M24="","",VLOOKUP($H$1,vldata!$A$2:$B$7,2)) ->  | BP24: =kenkijun!A8 -> 5 | BQ24: =kenkijun!B8 -> 22.216 | BR24: =kenkijun!C8 -> 28.218 | BS24: =kenkijun!D8 -> 45.312 | BT24: =kenkijun!E8 -> 52.679 | BV24: =kenkijun!G8 -> 82.341 | BW24: =kenkijun!H8 -> 7.729 | BX24: =kenkijun!I8 -> 187 | BY24: =kenkijun!J8 -> 35.152 | BZ24: =kenkijun!K8 -> 66.957
A25: 8 | G25: =IF(M25="","",VLOOKUP($H$1,vldata!$A$2:$B$7,2)) ->  | BP25: =kenkijun!A9 -> 6 | BQ25: =kenkijun!B9 -> 26.779 | BR25: =kenkijun!C9 -> 29.423 | BS25: =kenkijun!D9 -> 47.144 | BT25: =kenkijun!E9 -> 55.574 | BV25: =kenkijun!G9 -> 94.065 | BW25: =kenkijun!H9 -> 7.364 | BX25: =kenkijun!I9 -> 200.732 | BY25: =kenkijun!J9 -> 40.753 | BZ25: =kenkijun!K9 -> 73.194
A26: 9 | G26: =IF(M26="","",VLOOKUP($H$1,vldata!$A$2:$B$7,2)) ->  | BP26: =kenkijun!A10 -> 1 | BQ26: =kenkijun!B10 -> 0 | BR26: =kenkijun!C10 -> 0 | BS26: =kenkijun!D10 -> 0 | BT26: =kenkijun!E10 -> 0 | BV26: =kenkijun!G10 -> 0 | BW26: =kenkijun!H10 -> 0 | BX26: =kenkijun!I10 -> 0 | BY26: =kenkijun!J10 -> 0 | BZ26: =kenkijun!K10 -> 0 | CA26: =kenkijun!L10 -> 最低
A27: 10 | G27: =IF(M27="","",VLOOKUP($H$1,vldata!$A$2:$B$7,2)) ->  | BP27: =kenkijun!A11 -> 2 | BQ27: =kenkijun!B11 -> 0 | BR27: =kenkijun!C11 -> 0 | BS27: =kenkijun!D11 -> 0 | BT27: =kenkijun!E11 -> 0 | BV27: =kenkijun!G11 -> 0 | BW27: =kenkijun!H11 -> 0 | BX27: =kenkijun!I11 -> 0 | BY27: =kenkijun!J11 -> 0 | BZ27: =kenkijun!K11 -> 0
A28: 11 | G28: =IF(M28="","",VLOOKUP($H$1,vldata!$A$2:$B$7,2)) ->  | BP28: =kenkijun!A12 -> 3 | BQ28: =kenkijun!B12 -> 0 | BR28: =kenkijun!C12 -> 0 | BS28: =kenkijun!D12 -> 0 | BT28: =kenkijun!E12 -> 0 | BV28: =kenkijun!G12 -> 0 | BW28: =kenkijun!H12 -> 0 | BX28: =kenkijun!I12 -> 0 | BY28: =kenkijun!J12 -> 0 | BZ28: =kenkijun!K12 -> 0
A29: 12 | G29: =IF(M29="","",VLOOKUP($H$1,vldata!$A$2:$B$7,2)) ->  | BP29: =kenkijun!A13 -> 4 | BQ29: =kenkijun!B13 -> 7.39 | BR29: =kenkijun!C13 -> 4.82 | BS29: =kenkijun!D13 -> 14.85 | BT29: =kenkijun!E13 -> 20.04 | BV29: =kenkijun!G13 -> 0.28 | BW29: =kenkijun!H13 -> 11.89 | BX29: =kenkijun!I13 -> 103.83 | BY29: =kenkijun!J13 -> 4.11 | BZ29: =kenkijun!K13 -> 29.33
A30: 13 | G30: =IF(M30="","",VLOOKUP($H$1,vldata!$A$2:$B$7,2)) ->  | BP30: =kenkijun!A14 -> 5 | BQ30: =kenkijun!B14 -> 8.23 | BR30: =kenkijun!C14 -> 6.24 | BS30: =kenkijun!D14 -> 15.49 | BT30: =kenkijun!E14 -> 24.3 | BV30: =kenkijun!G14 -> 5.27 | BW30: =kenkijun!H14 -> 11.54 | BX30: =kenkijun!I14 -> 107.45 | BY30: =kenkijun!J14 -> 5.33 | BZ30: =kenkijun!K14 -> 33.25
A31: 14 | G31: =IF(M31="","",VLOOKUP($H$1,vldata!$A$2:$B$7,2)) ->  | BP31: =kenkijun!A15 -> 6 | BQ31: =kenkijun!B15 -> 9.13 | BR31: =kenkijun!C15 -> 9.11 | BS31: =kenkijun!D15 -> 17.47 | BT31: =kenkijun!E15 -> 27.75 | BV31: =kenkijun!G15 -> 11.37 | BW31: =kenkijun!H15 -> 10.99 | BX31: =kenkijun!I15 -> 116.52 | BY31: =kenkijun!J15 -> 6.75 | BZ31: =kenkijun!K15 -> 38.71
A32: 15 | G32: =IF(M32="","",VLOOKUP($H$1,vldata!$A$2:$B$7,2)) ->  | BP32: =kenkijun!A16 -> 1 | BQ32: =kenkijun!B16 -> 2 | BR32: =kenkijun!C16 -> 3 | BS32: =kenkijun!D16 -> 4 | BT32: =kenkijun!E16 -> 5 | BU32: =kenkijun!F16 -> 6 | BV32: =kenkijun!G16 -> 7 | BW32: =kenkijun!H16 -> 8 | BX32: =kenkijun!I16 -> 9 | BY32: =kenkijun!J16 -> 10 | BZ32: =kenkijun!K16 -> 11
A33: 16 | G33: =IF(M33="","",VLOOKUP($H$1,vldata!$A$2:$B$7,2)) ->  | BP33: =kenkijun!B17 -> 女子
A34: 17 | G34: =IF(M34="","",VLOOKUP($H$1,vldata!$A$2:$B$7,2)) ->  | BP34: =kenkijun!A18 -> 学年 | BQ34: =kenkijun!B18 -> 握力 | BR34: =kenkijun!C18 -> 上体 | BS34: =kenkijun!D18 -> 長座 | BT34: =kenkijun!E18 -> 反復 | BU34: =kenkijun!F18 -> 持久走 | BV34: =kenkijun!G18 -> シャ | BW34: =kenkijun!H18 -> 50m | BX34: =kenkijun!I18 -> 立幅 | BY34: =kenkijun!J18 -> ソフ | BZ34: =kenkijun!K18 -> 全体 | CA34: =kenkijun!L18 -> 最高
A35: 18 | G35: =IF(M35="","",VLOOKUP($H$1,vldata!$A$2:$B$7,2)) ->  | BP35: =kenkijun!A19 -> 1 | BQ35: =kenkijun!B19 -> 0 | BR35: =kenkijun!C19 -> 0 | BS35: =kenkijun!D19 -> 0 | BT35: =kenkijun!E19 -> 0 | BV35: =kenkijun!G19 -> 0 | BW35: =kenkijun!H19 -> 0 | BX35: =kenkijun!I19 -> 0 | BY35: =kenkijun!J19 -> 0 | BZ35: =kenkijun!K19 -> 0
A36: 19 | G36: =IF(M36="","",VLOOKUP($H$1,vldata!$A$2:$B$7,2)) ->  | BP36: =kenkijun!A20 -> 2 | BQ36: =kenkijun!B20 -> 0 | BR36: =kenkijun!C20 -> 0 | BS36: =kenkijun!D20 -> 0 | BT36: =kenkijun!E20 -> 0 | BV36: =kenkijun!G20 -> 0 | BW36: =kenkijun!H20 -> 0 | BX36: =kenkijun!I20 -> 0 | BY36: =kenkijun!J20 -> 0 | BZ36: =kenkijun!K20 -> 0
A37: 20 | G37: =IF(M37="","",VLOOKUP($H$1,vldata!$A$2:$B$7,2)) ->  | BP37: =kenkijun!A21 -> 3 | BQ37: =kenkijun!B21 -> 0 | BR37: =kenkijun!C21 -> 0 | BS37: =kenkijun!D21 -> 0 | BT37: =kenkijun!E21 -> 0 | BV37: =kenkijun!G21 -> 0 | BW37: =kenkijun!H21 -> 0 | BX37: =kenkijun!I21 -> 0 | BY37: =kenkijun!J21 -> 0 | BZ37: =kenkijun!K21 -> 0
A38: 21 | G38: =IF(M38="","",VLOOKUP($H$1,vldata!$A$2:$B$7,2)) ->  | BP38: =kenkijun!A22 -> 4 | BQ38: =kenkijun!B22 -> 18.474 | BR38: =kenkijun!C22 -> 24.595 | BS38: =kenkijun!D22 -> 46.8 | BT38: =kenkijun!E22 -> 45.897 | BV38: =kenkijun!G22 -> 55.823 | BW38: =kenkijun!H22 -> 8.502 | BX38: =kenkijun!I22 -> 167.745 | BY38: =kenkijun!J22 -> 18.919 | BZ38: =kenkijun!K22 -> 61.582
A39: 22 | G39: =IF(M39="","",VLOOKUP($H$1,vldata!$A$2:$B$7,2)) ->  | BP39: =kenkijun!A23 -> 5 | BQ39: =kenkijun!B23 -> 22.232 | BR39: =kenkijun!C23 -> 26.043 | BS39: =kenkijun!D23 -> 49.928 | BT39: =kenkijun!E23 -> 50.411 | BV39: =kenkijun!G23 -> 67.765 | BW39: =kenkijun!H23 -> 8.14 | BX39: =kenkijun!I23 -> 178.293 | BY39: =kenkijun!J23 -> 22.923 | BZ39: =kenkijun!K23 -> 68.687
A40: 23 | G40: =IF(M40="","",VLOOKUP($H$1,vldata!$A$2:$B$7,2)) ->  | BP40: =kenkijun!A24 -> 6 | BQ40: =kenkijun!B24 -> 25.455 | BR40: =kenkijun!C24 -> 26.988 | BS40: =kenkijun!D24 -> 52.218 | BT40: =kenkijun!E24 -> 52.558 | BV40: =kenkijun!G24 -> 75.322 | BW40: =kenkijun!H24 -> 7.861 | BX40: =kenkijun!I24 -> 188.246 | BY40: =kenkijun!J24 -> 26.143 | BZ40: =kenkijun!K24 -> 73.67
A41: 24 | G41: =IF(M41="","",VLOOKUP($H$1,vldata!$A$2:$B$7,2)) ->  | BP41: =kenkijun!A25 -> 1 | BQ41: =kenkijun!B25 -> 0 | BR41: =kenkijun!C25 -> 0 | BS41: =kenkijun!D25 -> 0 | BT41: =kenkijun!E25 -> 0 | BV41: =kenkijun!G25 -> 0 | BW41: =kenkijun!H25 -> 0 | BX41: =kenkijun!I25 -> 0 | BY41: =kenkijun!J25 -> 0 | BZ41: =kenkijun!K25 -> 0 | CA41: =kenkijun!L25 -> 最低
A42: 25 | G42: =IF(M42="","",VLOOKUP($H$1,vldata!$A$2:$B$7,2)) ->  | BP42: =kenkijun!A26 -> 2 | BQ42: =kenkijun!B26 -> 0 | BR42: =kenkijun!C26 -> 0 | BS42: =kenkijun!D26 -> 0 | BT42: =kenkijun!E26 -> 0 | BV42: =kenkijun!G26 -> 0 | BW42: =kenkijun!H26 -> 0 | BX42: =kenkijun!I26 -> 0 | BY42: =kenkijun!J26 -> 0 | BZ42: =kenkijun!K26 -> 0
A43: 26 | G43: =IF(M43="","",VLOOKUP($H$1,vldata!$A$2:$B$7,2)) ->  | BP43: =kenkijun!A27 -> 3 | BQ43: =kenkijun!B27 -> 0 | BR43: =kenkijun!C27 -> 0 | BS43: =kenkijun!D27 -> 0 | BT43: =kenkijun!E27 -> 0 | BV43: =kenkijun!G27 -> 0 | BW43: =kenkijun!H27 -> 0 | BX43: =kenkijun!I27 -> 0 | BY43: =kenkijun!J27 -> 0 | BZ43: =kenkijun!K27 -> 0
A44: 27 | G44: =IF(M44="","",VLOOKUP($H$1,vldata!$A$2:$B$7,2)) ->  | BP44: =kenkijun!A28 -> 4 | BQ44: =kenkijun!B28 -> 6.93 | BR44: =kenkijun!C28 -> 5.17 | BS44: =kenkijun!D28 -> 17.94 | BT44: =kenkijun!E28 -> 19.22 | BV44: =kenkijun!G28 -> 1.1 | BW44: =kenkijun!H28 -> 11.98 | BX44: =kenkijun!I28 -> 96.52 | BY44: =kenkijun!J28 -> 2.75 | BZ44: =kenkijun!K28 -> 30.28
A45: 28 | G45: =IF(M45="","",VLOOKUP($H$1,vldata!$A$2:$B$7,2)) ->  | BP45: =kenkijun!A29 -> 5 | BQ45: =kenkijun!B29 -> 7.95 | BR45: =kenkijun!C29 -> 7.21 | BS45: =kenkijun!D29 -> 19.44 | BT45: =kenkijun!E29 -> 24.03 | BV45: =kenkijun!G29 -> 5.05 | BW45: =kenkijun!H29 -> 11.47 | BX45: =kenkijun!I29 -> 103.59 | BY45: =kenkijun!J29 -> 3.35 | BZ45: =kenkijun!K29 -> 36.09
A46: 29 | G46: =IF(M46="","",VLOOKUP($H$1,vldata!$A$2:$B$7,2)) ->  | BP46: =kenkijun!A30 -> 6 | BQ46: =kenkijun!B30 -> 9.73 | BR46: =kenkijun!C30 -> 8.34 | BS46: =kenkijun!D30 -> 21.36 | BT46: =kenkijun!E30 -> 26.88 | BV46: =kenkijun!G30 -> 7.39 | BW46: =kenkijun!H30 -> 11.08 | BX46: =kenkijun!I30 -> 108.77 | BY46: =kenkijun!J30 -> 3.61 | BZ46: =kenkijun!K30 -> 40.37
A47: 30 | G47: =IF(M47="","",VLOOKUP($H$1,vldata!$A$2:$B$7,2)) -> 
A48: 1 | G48: =IF(M48="","",VLOOKUP($H$1,vldata!$A$2:$B$7,2)) ->  | J48: =IF(M48="","",2) ->  | L48: =IF(M48="","","女子") -> 
A49: 2 | G49: =IF(M49="","",VLOOKUP($H$1,vldata!$A$2:$B$7,2)) -> 
A50: 3 | B50: =IF(M50="","",H50*100000+I50*1000+J50*100+K50) ->  | G50: =IF(M50="","",VLOOKUP($H$1,vldata!$A$2:$B$7,2)) ->  | H50: =IF(M50="","",$H$1) ->  | I50: =IF(M50="","",$K$1) ->  | K50: =IF(M50="","",A50) -> 
A51: 4 | G51: =IF(M51="","",VLOOKUP($H$1,vldata!$A$2:$B$7,2)) -> 
A52: 5 | G52: =IF(M52="","",VLOOKUP($H$1,vldata!$A$2:$B$7,2)) -> 
A53: 6 | G53: =IF(M53="","",VLOOKUP($H$1,vldata!$A$2:$B$7,2)) -> 
A54: 7 | G54: =IF(M54="","",VLOOKUP($H$1,vldata!$A$2:$B$7,2)) -> 
A55: 8 | G55: =IF(M55="","",VLOOKUP($H$1,vldata!$A$2:$B$7,2)) -> 
A56: 9 | G56: =IF(M56="","",VLOOKUP($H$1,vldata!$A$2:$B$7,2)) -> 
A57: 10 | G57: =IF(M57="","",VLOOKUP($H$1,vldata!$A$2:$B$7,2)) -> 
A58: 11 | G58: =IF(M58="","",VLOOKUP($H$1,vldata!$A$2:$B$7,2)) -> 
A59: 12 | G59: =IF(M59="","",VLOOKUP($H$1,vldata!$A$2:$B$7,2)) -> 
A60: 13 | G60: =IF(M60="","",VLOOKUP($H$1,vldata!$A$2:$B$7,2)) -> 
A61: 14 | G61: =IF(M61="","",VLOOKUP($H$1,vldata!$A$2:$B$7,2)) -> 
A62: 15 | G62: =IF(M62="","",VLOOKUP($H$1,vldata!$A$2:$B$7,2)) -> 
A63: 16 | G63: =IF(M63="","",VLOOKUP($H$1,vldata!$A$2:$B$7,2)) -> 
A64: 17 | G64: =IF(M64="","",VLOOKUP($H$1,vldata!$A$2:$B$7,2)) -> 
A65: 18 | G65: =IF(M65="","",VLOOKUP($H$1,vldata!$A$2:$B$7,2)) -> 
A66: 19 | G66: =IF(M66="","",VLOOKUP($H$1,vldata!$A$2:$B$7,2)) -> 
A67: 20 | G67: =IF(M67="","",VLOOKUP($H$1,vldata!$A$2:$B$7,2)) -> 
A68: 21 | G68: =IF(M68="","",VLOOKUP($H$1,vldata!$A$2:$B$7,2)) -> 
A69: 22 | G69: =IF(M69="","",VLOOKUP($H$1,vldata!$A$2:$B$7,2)) -> 
A70: 23 | G70: =IF(M70="","",VLOOKUP($H$1,vldata!$A$2:$B$7,2)) -> 
A71: 24 | G71: =IF(M71="","",VLOOKUP($H$1,vldata!$A$2:$B$7,2)) -> 
A72: 25 | G72: =IF(M72="","",VLOOKUP($H$1,vldata!$A$2:$B$7,2)) -> 
A73: 26 | G73: =IF(M73="","",VLOOKUP($H$1,vldata!$A$2:$B$7,2)) -> 
A74: 27 | G74: =IF(M74="","",VLOOKUP($H$1,vldata!$A$2:$B$7,2)) -> 
A75: 28 | G75: =IF(M75="","",VLOOKUP($H$1,vldata!$A$2:$B$7,2)) -> 
A76: 29 | G76: =IF(M76="","",VLOOKUP($H$1,vldata!$A$2:$B$7,2)) -> 
A77: 30 | G77: =IF(M77="","",VLOOKUP($H$1,vldata!$A$2:$B$7,2)) -> 

Sheet vldata
A1: 学年 | B1: 学齢 | C1: 校種 | E1: 市町名 | J1: 学級 | M1: 校種１ | O1: 校種２ | Q1: 市町番号 | R1: 市町名 | T1: 校種番号１ | U1: 校種名１ | V1: 校種番号２ | W1: 校種名２ | X1: 市町番号 | Y1: 市町名 | Z1: 学校名 | AA1: 学校番号 | AB1: 学校名省略 | AC1: Q4 | AD1: Q5 | AE1: Q6 | AF1: Q7 | AG1: Q8 | AH1: Q9 | AI1: Q11 | AJ1: Q12 | AK1: Q13 | AL1: Q14 | AM1: Q15 | AN1: Q16 | AO1: 男握力 | AP1: 男上体 | AQ1: 男長座 | AR1: 男反復 | AS1: 男持久走 | AT1: 男シャ | AU1: 男５０Ｍ | AV1: 男立幅 | AW1: 男ソフ | AX1: 女握力 | AY1: 女上体 | AZ1: 女長座 | BA1: 女反復 | BB1: 女持久走 | BC1: 女シャ | BD1: 女５０Ｍ | BE1: 女立幅 | BF1: 女ソフ | BH1: 在籍人数
A2: ▼ | B2: 06 | C2: 公立小学校 | D2: 1 | E2: 長崎市 | F2: 201 | G2: 1 | H2: 男 | J2: ▼ | L2: 1 | M2: ▼選択して下さい | N2: 1 | O2: ▼選択して下さい | P2: 1 | Q2: 999 | R2: ▼選択して下さい | T2: 1 | U2: 公立 | V2: 1 | W2: 小学校 | X2: 201 | Y2: 長崎市 | Z2: 日見小学校 | AA2: 90010 | AB2: 日見 | AC2: 1 | AD2: 1 | AE2: 1 | AF2: 1 | AG2: 1 | AH2: 1 | AI2: 1 | AJ2: 1 | AK2: 1 | AL2: 1 | AM2: 1 | AN2: 1 | AO2: 4 | AP2: 2 | AQ2: 12 | AR2: 17 | AT2: 0 | AU2: 7.4 | AV2: 81 | AW2: 2 | AX2: 4 | AY2: 2 | AZ2: 15 | BA2: 17 | BC2: 1 | BD2: 7.8 | BE2: 75 | BF2: 1 | BH2: 0
A3: 1 | B3: 07 | C3: 私立 | D3: 2 | E3: 佐世保市 | F3: 202 | G3: 2 | H3: 女 | J3: 1 | L3: =L2+1 -> 2 | M3: 公立 | N3: =N2+1 -> 2 | O3: 小学校 | P3: =P2+1 -> 2 | Q3: 201 | R3: 長崎市 | T3: 1 | U3: 公立 | V3: 1 | W3: 小学校 | X3: 201 | Y3: 長崎市 | Z3: 伊良林小学校 | AA3: 90020 | AB3: 伊良林 | AC3: 2 | AD3: 2 | AE3: 2 | AF3: 2 | AG3: 2 | AH3: 2 | AI3: 2 | AJ3: 2 | AK3: 2 | AL3: 2 | AM3: 2 | AN3: 2 | AO3: 5 | AP3: 3 | AQ3: 13 | AR3: =AR2+1 -> 18 | AT3: 1 | AU3: 7.5 | AV3: 82 | AW3: 3 | AX3: 5 | AY3: 3 | AZ3: 16 | BA3: =BA2+1 -> 18 | BC3: 2 | BD3: 7.9 | BE3: 76 | BF3: 2 | BH3: 1
A4: 2 | B4: 08 | C4: 特別支援学校小学部 | D4: 3 | E4: 島原市 | F4: 203 | J4: 2 | L4: =L3+1 -> 3 | M4: 私立 | N4: 3 | O4: 特別支援 小学校 | P4: 3 | Q4: 202 | R4: 佐世保市 | T4: 1 | U4: 公立 | V4: 1 | W4: 小学校 | X4: 201 | Y4: 長崎市 | Z4: 上長崎小学校 | AA4: 90040 | AB4: 上長崎 | AD4: 3 | AE4: 3 | AF4: 3 | AG4: 3 | AH4: 3 | AI4: 3 | AJ4: 3 | AK4: 3 | AL4: 3 | AM4: 3 | AN4: 3 | AO4: 6 | AP4: 4 | AQ4: 14 | AR4: 19 | AT4: 2 | AU4: 7.6 | AV4: 83 | AW4: 4 | AX4: 6 | AY4: 4 | AZ4: 17 | BA4: 19 | BC4: 3 | BD4: 8 | BE4: 77 | BF4: 3 | BH4: 2
A5: 3 | B5: 09 | C5: 国立 | D5: 4 | E5: 諫早市 | F5: 204 | J5: 3 | L5: =L4+1 -> 4 | M5: 国立 | N5: 4 | P5: 4 | Q5: 203 | R5: 島原市 | T5: 1 | U5: 公立 | V5: 1 | W5: 小学校 | X5: 201 | Y5: 長崎市 | Z5: 西坂小学校 | AA5: 90070 | AB5: 西坂 | AD5: 4 | AE5: 4 | AH5: 4 | AI5: 4 | AJ5: 4 | AK5: 4 | AL5: 4 | AM5: 4 | AN5: 4 | AO5: 7 | AP5: 5 | AQ5: 15 | AR5: 20 | AT5: 3 | AU5: 7.7 | AV5: 84 | AW5: 5 | AX5: 7 | AY5: 5 | AZ5: 18 | BA5: 20 | BC5: 4 | BD5: 8.1 | BE5: 78 | BF5: 4 | BH5: 3
A6: 4 | B6: 10 | D6: 5 | E6: 大村市 | F6: 205 | J6: 4 | N6: 5 | P6: 5 | Q6: 204 | R6: 諫早市 | T6: 1 | U6: 公立 | V6: 1 | W6: 小学校 | X6: 201 | Y6: 長崎市 | Z6: 小島小学校 | AA6: 90080 | AB6: 小島 | AO6: 8 | AP6: 6 | AQ6: 16 | AR6: 21 | AT6: 4 | AU6: 7.8 | AV6: 85 | AW6: 6 | AX6: 8 | AY6: 6 | AZ6: 19 | BA6: 21 | BC6: 5 | BD6: 8.2 | BE6: 79 | BF6: 5 | BH6: =BH5+1 -> 4
A7: 5 | B7: 11 | D7: 6 | E7: 平戸市 | F7: 207 | J7: 5 | N7: 6 | P7: 6 | Q7: 205 | R7: 大村市 | T7: 1 | U7: 公立 | V7: 1 | W7: 小学校 | X7: 201 | Y7: 長崎市 | Z7: 愛宕小学校 | AA7: 90090 | AB7: 愛宕 | AO7: 9 | AP7: 7 | AQ7: 17 | AR7: 22 | AT7: 5 | AU7: 7.9 | AV7: 86 | AW7: 7 | AX7: 9 | AY7: 7 | AZ7: 20 | BA7: 22 | BC7: 6 | BD7: 8.3 | BE7: 80 | BF7: 6 | BH7: 5
A8: 6 | D8: 7 | E8: 松浦市 | F8: 208 | J8: 6 | N8: 7 | P8: 7 | Q8: 207 | R8: 平戸市 | T8: 1 | U8: 公立 | V8: 1 | W8: 小学校 | X8: 201 | Y8: 長崎市 | Z8: 佐古小学校 | AA8: 90100 | AB8: 佐古 | AO8: 10 | AP8: 8 | AQ8: 18 | AR8: 23 | AT8: 6 | AU8: 8 | AV8: 87 | AW8: 8 | AX8: 10 | AY8: 8 | AZ8: 21 | BA8: 23 | BC8: 7 | BD8: 8.4 | BE8: 81 | BF8: 7 | BH8: 6
D9: 8 | E9: 対馬市 | F9: 209 | J9: 7 | N9: 8 | P9: 8 | Q9: 208 | R9: 松浦市 | T9: 1 | U9: 公立 | V9: 1 | W9: 小学校 | X9: 201 | Y9: 長崎市 | Z9: 仁田小学校 | AA9: 90110 | AB9: 仁田 | AO9: 11 | AP9: 9 | AQ9: 19 | AR9: 24 | AT9: 7 | AU9: 8.1 | AV9: 88 | AW9: 9 | AX9: 11 | AY9: 9 | AZ9: 22 | BA9: 24 | BC9: 8 | BD9: 8.5 | BE9: 82 | BF9: 8 | BH9: 7
D10: 9 | E10: 壱岐市 | F10: 210 | J10: 8 | P10: 9 | Q10: 209 | R10: 対馬市 | T10: 1 | U10: 公立 | V10: 1 | W10: 小学校 | X10: 201 | Y10: 長崎市 | Z10: 戸町小学校 | AA10: 90150 | AB10: 戸町 | AO10: 12 | AP10: 10 | AQ10: 20 | AR10: 25 | AT10: 8 | AU10: 8.2 | AV10: 89 | AW10: 10 | AX10: 12 | AY10: 10 | AZ10: 23 | BA10: 25 | BC10: 9 | BD10: 8.6 | BE10: 83 | BF10: 9 | BH10: 8
D11: 10 | E11: 五島市 | F11: 211 | J11: 9 | P11: 10 | Q11: 210 | R11: 壱岐市 | T11: 1 | U11: 公立 | V11: 1 | W11: 小学校 | X11: 201 | Y11: 長崎市 | Z11: 小ケ倉小学校 | AA11: 90160 | AB11: 小ケ倉 | AO11: 13 | AP11: 11 | AQ11: 21 | AR11: 26 | AT11: 9 | AU11: 8.3 | AV11: 90 | AW11: 11 | AX11: 13 | AY11: 11 | AZ11: 24 | BA11: 26 | BC11: 10 | BD11: 8.7 | BE11: 84 | BF11: 10 | BH11: 9
D12: 11 | E12: 西海市 | F12: 212 | J12: 10 | P12: 11 | Q12: 211 | R12: 五島市 | T12: 1 | U12: 公立 | V12: 1 | W12: 小学校 | X12: 201 | Y12: 長崎市 | Z12: 土井首小学校 | AA12: 90170 | AB12: 土井首 | AO12: 14 | AP12: 12 | AQ12: 22 | AR12: 27 | AT12: 10 | AU12: 8.4 | AV12: 91 | AW12: 12 | AX12: 14 | AY12: 12 | AZ12: 25 | BA12: 27 | BC12: 11 | BD12: 8.8 | BE12: 85 | BF12: 11 | BH12: 10
D13: 12 | E13: 雲仙市 | F13: 213 | J13: 11 | P13: 12 | Q13: 212 | R13: 西海市 | T13: 1 | U13: 公立 | V13: 1 | W13: 小学校 | X13: 201 | Y13: 長崎市 | Z13: 深堀小学校 | AA13: 90180 | AB13: 深堀 | AO13: 15 | AP13: 13 | AQ13: 23 | AR13: 28 | AT13: 11 | AU13: 8.5 | AV13: 92 | AW13: 13 | AX13: 15 | AY13: 13 | AZ13: 26 | BA13: 28 | BC13: 12 | BD13: 8.9 | BE13: 86 | BF13: 12 | BH13: 11
D14: 13 | E14: 南島原市 | F14: 214 | J14: 12 | P14: 13 | Q14: 213 | R14: 雲仙市 | T14: 1 | U14: 公立 | V14: 1 | W14: 小学校 | X14: 201 | Y14: 長崎市 | Z14: 手熊小学校 | AA14: 90190 | AB14: 手熊 | AO14: 16 | AP14: 14 | AQ14: 24 | AR14: 29 | AT14: 12 | AU14: 8.6 | AV14: 93 | AW14: 14 | AX14: 16 | AY14: 14 | AZ14: 27 | BA14: 29 | BC14: 13 | BD14: 9 | BE14: 87 | BF14: 13 | BH14: 12
D15: 14 | E15: 長与町 | F15: 307 | P15: 14 | Q15: 214 | R15: 南島原市 | T15: 1 | U15: 公立 | V15: 1 | W15: 小学校 | X15: 201 | Y15: 長崎市 | Z15: 福田小学校 | AA15: 90200 | AB15: 福田 | AO15: 17 | AP15: 15 | AQ15: 25 | AR15: 30 | AT15: 13 | AU15: 8.7 | AV15: 94 | AW15: 15 | AX15: 17 | AY15: 15 | AZ15: 28 | BA15: 30 | BC15: 14 | BD15: 9.1 | BE15: 88 | BF15: 14 | BH15: 13
D16: 15 | E16: 時津町 | F16: 308 | P16: 15 | Q16: 307 | R16: 長与町 | T16: 1 | U16: 公立 | V16: 1 | W16: 小学校 | X16: 201 | Y16: 長崎市 | Z16: 小榊小学校 | AA16: 90210 | AB16: 小榊 | AO16: 18 | AP16: 16 | AQ16: 26 | AR16: 31 | AT16: 14 | AU16: 8.8 | AV16: 95 | AW16: 16 | AX16: 18 | AY16: 16 | AZ16: 29 | BA16: 31 | BC16: 15 | BD16: 9.2 | BE16: 89 | BF16: 15 | BH16: 14
D17: 16 | E17: 東彼杵町 | F17: 321 | P17: 16 | Q17: 308 | R17: 時津町 | T17: 1 | U17: 公立 | V17: 1 | W17: 小学校 | X17: 201 | Y17: 長崎市 | Z17: 飽浦小学校 | AA17: 90230 | AB17: 飽浦 | AO17: 19 | AP17: 17 | AQ17: 27 | AR17: 32 | AT17: 15 | AU17: 8.9 | AV17: 96 | AW17: 17 | AX17: 19 | AY17: 17 | AZ17: 30 | BA17: 32 | BC17: 16 | BD17: 9.3 | BE17: 90 | BF17: 16 | BH17: 15
D18: 17 | E18: 川棚町 | F18: 322 | P18: 17 | Q18: 321 | R18: 東彼杵町 | T18: 1 | U18: 公立 | V18: 1 | W18: 小学校 | X18: 201 | Y18: 長崎市 | Z18: 朝日小学校 | AA18: 90240 | AB18: 朝日 | AO18: 20 | AP18: 18 | AQ18: 28 | AR18: 33 | AT18: 16 | AU18: 9 | AV18: 97 | AW18: 18 | AX18: 20 | AY18: 18 | AZ18: 31 | BA18: 33 | BC18: 17 | BD18: 9.4 | BE18: 91 | BF18: 17 | BH18: 16
D19: 18 | E19: 波佐見町 | F19: 323 | P19: 18 | Q19: 322 | R19: 川棚町 | T19: 1 | U19: 公立 | V19: 1 | W19: 小学校 | X19: 201 | Y19: 長崎市 | Z19: 稲佐小学校 | AA19: 90250 | AB19: 稲佐 | AO19: 21 | AP19: 19 | AQ19: 29 | AR19: 34 | AT19: 17 | AU19: 9.1 | AV19: 98 | AW19: 19 | AX19: 21 | AY19: 19 | AZ19: 32 | BA19: 34 | BC19: 18 | BD19: 9.5 | BE19: 92 | BF19: 18 | BH19: 17
D20: 19 | E20: 小値賀町 | F20: 383 | P20: 19 | Q20: 323 | R20: 波佐見町 | T20: 1 | U20: 公立 | V20: 1 | W20: 小学校 | X20: 201 | Y20: 長崎市 | Z20: 城山小学校 | AA20: 90260 | AB20: 城山 | AO20: 22 | AP20: 20 | AQ20: 30 | AR20: 35 | AT20: 18 | AU20: 9.2 | AV20: 99 | AW20: 20 | AX20: 22 | AY20: 20 | AZ20: 33 | BA20: 35 | BC20: 19 | BD20: 9.6 | BE20: 93 | BF20: 19 | BH20: 18
D21: 20 | E21: 佐々町 | F21: 391 | P21: 20 | Q21: 383 | R21: 小値賀町 | T21: 1 | U21: 公立 | V21: 1 | W21: 小学校 | X21: 201 | Y21: 長崎市 | Z21: 西城山小学校 | AA21: 90270 | AB21: 西城山 | AO21: 23 | AP21: 21 | AQ21: 31 | AR21: 36 | AT21: 19 | AU21: 9.3 | AV21: 100 | AW21: 21 | AX21: 23 | AY21: 21 | AZ21: 34 | BA21: 36 | BC21: 20 | BD21: 9.7 | BE21: 94 | BF21: 20 | BH21: 19
D22: 21 | E22: 新上五島町 | F22: 411 | P22: 21 | Q22: 391 | R22: 佐々町 | T22: 1 | U22: 公立 | V22: 1 | W22: 小学校 | X22: 201 | Y22: 長崎市 | Z22: 西町小学校 | AA22: 90280 | AB22: 西町 | AO22: 24 | AP22: 22 | AQ22: 32 | AR22: 37 | AT22: 20 | AU22: 9.4 | AV22: 101 | AW22: 22 | AX22: 24 | AY22: 22 | AZ22: 35 | BA22: 37 | BC22: 21 | BD22: 9.8 | BE22: 95 | BF22: 21 | BH22: 20
D23: 22 | E23: 私立 | F23: 401 | P23: 22 | Q23: 411 | R23: 新上五島町 | T23: 1 | U23: 公立 | V23: 1 | W23: 小学校 | X23: 201 | Y23: 長崎市 | Z23: 西北小学校 | AA23: 90290 | AB23: 西北 | AO23: 25 | AP23: 23 | AQ23: 33 | AR23: 38 | AT23: 21 | AU23: 9.5 | AV23: 102 | AW23: 23 | AX23: 25 | AY23: 23 | AZ23: 36 | BA23: 38 | BC23: 22 | BD23: 9.9 | BE23: 96 | BF23: 22 | BH23: 21
D24: 23 | E24: 国立 | F24: 301 | T24: 1 | U24: 公立 | V24: 1 | W24: 小学校 | X24: 201 | Y24: 長崎市 | Z24: 滑石小学校 | AA24: 90300 | AB24: 滑石 | AO24: 26 | AP24: 24 | AQ24: 34 | AR24: 39 | AT24: 22 | AU24: 9.6 | AV24: 103 | AW24: 24 | AX24: 26 | AY24: 24 | AZ24: 37 | BA24: 39 | BC24: 23 | BD24: 10 | BE24: 97 | BF24: 23 | BH24: 22
D25: 24 | E25: 県立 | F25: 501 | T25: 1 | U25: 公立 | V25: 1 | W25: 小学校 | X25: 201 | Y25: 長崎市 | Z25: 大園小学校 | AA25: 90310 | AB25: 大園 | AO25: 27 | AP25: 25 | AQ25: 35 | AR25: 40 | AT25: 23 | AU25: 9.7 | AV25: 104 | AW25: 25 | AY25: 25 | AZ25: 38 | BA25: 40 | BC25: 24 | BD25: 10.1 | BE25: 98 | BF25: 24 | BH25: 23
D26: 25 | E26: ▼選択して下さい | F26: 0 | T26: 1 | U26: 公立 | V26: 1 | W26: 小学校 | X26: 201 | Y26: 長崎市 | Z26: 北陽小学校 | AA26: 90320 | AB26: 北陽 | AO26: 28 | AP26: 26 | AQ26: 36 | AR26: 41 | AT26: 24 | AU26: 9.8 | AV26: 105 | AW26: 26 | AY26: 26 | AZ26: 39 | BA26: 41 | BC26: 25 | BD26: 10.2 | BE26: 99 | BF26: 25 | BH26: 24
T27: 1 | U27: 公立 | V27: 1 | W27: 小学校 | X27: 201 | Y27: 長崎市 | Z27: 西浦上小学校 | AA27: 90330 | AB27: 西浦上 | AP27: 27 | AQ27: 37 | AR27: 42 | AT27: 25 | AU27: 9.9 | AV27: 106 | AW27: 27 | AY27: 27 | AZ27: 40 | BA27: 42 | BC27: 26 | BD27: 10.3 | BE27: 100 | BF27: 26 | BH27: 25
T28: 1 | U28: 公立 | V28: 1 | W28: 小学校 | X28: 201 | Y28: 長崎市 | Z28: 三原小学校 | AA28: 90350 | AB28: 三原 | AP28: 28 | AQ28: 38 | AR28: 43 | AT28: 26 | AU28: 10 | AV28: 107 | AW28: 28 | AZ28: 41 | BA28: 43 | BC28: 27 | BD28: 10.4 | BE28: 101 | BF28: 27 | BH28: 26
T29: 1 | U29: 公立 | V29: 1 | W29: 小学校 | X29: 201 | Y29: 長崎市 | Z29: 高尾小学校 | AA29: 90360 | AB29: 高尾 | AP29: 29 | AQ29: 39 | AR29: 44 | AT29: 27 | AU29: 10.1 | AV29: 108 | AW29: 29 | AZ29: 42 | BA29: 44 | BC29: 28 | BD29: 10.5 | BE29: 102 | BF29: 28 | BH29: 27
T30: 1 | U30: 公立 | V30: 1 | W30: 小学校 | X30: 201 | Y30: 長崎市 | Z30: 山里小学校 | AA30: 90370 | AB30: 山里 | AP30: 30 | AQ30: 40 | AR30: 45 | AT30: 28 | AU30: 10.2 | AV30: 109 | AW30: 30 | AZ30: 43 | BA30: 45 | BC30: 29 | BD30: 10.6 | BE30: 103 | BF30: 29 | BH30: 28
E31: 所属名 | F31: 所属番号 | G31: 市町村番号 | H31: 市町村 | I31: 市町番号 | T31: 1 | U31: 公立 | V31: 1 | W31: 小学校 | X31: 201 | Y31: 長崎市 | Z31: 坂本小学校 | AA31: 90380 | AB31: 坂本 | AQ31: 41 | AR31: 46 | AT31: 29 | AU31: 10.3 | AV31: 110 | AW31: 31 | AZ31: 44 | BA31: 46 | BC31: 30 | BD31: 10.7 | BE31: 104 | BH31: 29
D32: 1 | E32: 長崎市立日見小学校 | F32: 90010 | G32: 201 | H32: 長崎市 | I32: 1 | T32: 1 | U32: 公立 | V32: 1 | W32: 小学校 | X32: 201 | Y32: 長崎市 | Z32: 銭座小学校 | AA32: 90390 | AB32: 銭座 | AQ32: 42 | AR32: 47 | AT32: 30 | AU32: 10.4 | AV32: 111 | AW32: 32 | AZ32: 45 | BA32: 47 | BC32: 31 | BD32: 10.8 | BE32: 105 | BH32: 30
D33: 2 | E33: 長崎市立伊良林小学校 | F33: 90020 | G33: 201 | H33: 長崎市 | I33: 1 | T33: 1 | U33: 公立 | V33: 1 | W33: 小学校 | X33: 201 | Y33: 長崎市 | Z33: 茂木小学校 | AA33: 90400 | AB33: 茂木 | AQ33: 43 | AR33: 48 | AT33: 31 | AU33: 10.5 | AV33: 112 | AW33: 33 | AZ33: 46 | BA33: 48 | BC33: 32 | BD33: 10.9 | BE33: 106
D34: 3 | E34: 長崎市立上長崎小学校 | F34: 90040 | G34: 201 | H34: 長崎市 | I34: 1 | T34: 1 | U34: 公立 | V34: 1 | W34: 小学校 | X34: 201 | Y34: 長崎市 | Z34: 日吉小学校 | AA34: 90410 | AB34: 日吉 | AQ34: 44 | AR34: 49 | AT34: 32 | AU34: 10.6 | AV34: 113 | AW34: 34 | AZ34: 47 | BA34: 49 | BC34: 33 | BD34: 11 | BE34: 107
D35: 4 | E35: 長崎市立西坂小学校 | F35: 90070 | G35: 201 | H35: 長崎市 | I35: 1 | T35: 1 | U35: 公立 | V35: 1 | W35: 小学校 | X35: 201 | Y35: 長崎市 | Z35: 南小学校 | AA35: 90420 | AB35: 南 | AQ35: 45 | AR35: 50 | AT35: 33 | AU35: 10.7 | AV35: 114 | AW35: 35 | AZ35: 48 | BA35: 50 | BC35: 34 | BD35: 11.1 | BE35: 108
D36: 5 | E36: 長崎市立小島小学校 | F36: 90080 | G36: 201 | H36: 長崎市 | I36: 1 | T36: 1 | U36: 公立 | V36: 1 | W36: 小学校 | X36: 201 | Y36: 長崎市 | Z36: 式見小学校 | AA36: 90430 | AB36: 式見 | AQ36: 46 | AR36: 51 | AT36: 34 | AU36: 10.8 | AV36: 115 | AW36: 36 | AZ36: 49 | BA36: 51 | BC36: 35 | BD36: 11.2 | BE36: 109
D37: 6 | E37: 長崎市立愛宕小学校 | F37: 90090 | G37: 201 | H37: 長崎市 | I37: 1 | T37: 1 | U37: 公立 | V37: 1 | W37: 小学校 | X37: 201 | Y37: 長崎市 | Z37: 矢上小学校 | AA37: 90440 | AB37: 矢上 | AR37: 52 | AT37: 35 | AU37: 10.9 | AV37: 116 | AW37: 37 | AZ37: 50 | BA37: 52 | BC37: 36 | BD37: 11.3 | BE37: 110
D38: 7 | E38: 長崎市立佐古小学校 | F38: 90100 | G38: 201 | H38: 長崎市 | I38: 1 | T38: 1 | U38: 公立 | V38: 1 | W38: 小学校 | X38: 201 | Y38: 長崎市 | Z38: 戸石小学校 | AA38: 90450 | AB38: 戸石 | AR38: 53 | AT38: 36 | AU38: 11 | AV38: 117 | AW38: 38 | AZ38: 51 | BA38: 53 | BC38: 37 | BD38: 11.4 | BE38: 111
D39: 8 | E39: 長崎市立仁田小学校 | F39: 90110 | G39: 201 | H39: 長崎市 | I39: 1 | T39: 1 | U39: 公立 | V39: 1 | W39: 小学校 | X39: 201 | Y39: 長崎市 | Z39: 古賀小学校 | AA39: 90460 | AB39: 古賀 | AR39: 54 | AT39: 37 | AU39: 11.1 | AV39: 118 | AW39: 39 | BC39: 38 | BD39: 11.5 | BE39: 112
D40: 9 | E40: 長崎市立戸町小学校 | F40: 90150 | G40: 201 | H40: 長崎市 | I40: 1 | T40: 1 | U40: 公立 | V40: 1 | W40: 小学校 | X40: 201 | Y40: 長崎市 | Z40: 三重小学校 | AA40: 90470 | AB40: 三重 | AR40: 55 | AT40: 38 | AU40: 11.2 | AV40: 119 | AW40: 40 | BC40: 39 | BD40: 11.6 | BE40: 113
D41: 10 | E41: 長崎市立小ケ倉小学校 | F41: 90160 | G41: 201 | H41: 長崎市 | I41: 1 | T41: 1 | U41: 公立 | V41: 1 | W41: 小学校 | X41: 201 | Y41: 長崎市 | Z41: 畝刈小学校 | AA41: 90480 | AB41: 畝刈 | AR41: 56 | AT41: 39 | AU41: 11.3 | AV41: 120 | AW41: 41 | BC41: 40 | BD41: 11.7 | BE41: 114
D42: 11 | E42: 長崎市立土井首小学校 | F42: 90170 | G42: 201 | H42: 長崎市 | I42: 1 | T42: 1 | U42: 公立 | V42: 1 | W42: 小学校 | X42: 201 | Y42: 長崎市 | Z42: 女の都小学校 | AA42: 90490 | AB42: 女の都 | AR42: 57 | AT42: 40 | AU42: 11.4 | AV42: 121 | AW42: 42 | BC42: 41 | BD42: 11.8 | BE42: 115
D43: 12 | E43: 長崎市立深堀小学校 | F43: 90180 | G43: 201 | H43: 長崎市 | I43: 1 | T43: 1 | U43: 公立 | V43: 1 | W43: 小学校 | X43: 201 | Y43: 長崎市 | Z43: 香焼小学校 | AA43: 94010 | AB43: 香焼 | AT43: 41 | AU43: 11.5 | AV43: 122 | AW43: 43 | BC43: 42 | BD43: 11.9 | BE43: 116
D44: 13 | E44: 長崎市立手熊小学校 | F44: 90190 | G44: 201 | H44: 長崎市 | I44: 1 | T44: 1 | U44: 公立 | V44: 1 | W44: 小学校 | X44: 201 | Y44: 長崎市 | Z44: 伊王島小学校 | AA44: 94020 | AB44: 伊王島 | AT44: 42 | AU44: 11.6 | AV44: 123 | AW44: 44 | BC44: 43 | BD44: 12 | BE44: 117
D45: 14 | E45: 長崎市立福田小学校 | F45: 90200 | G45: 201 | H45: 長崎市 | I45: 1 | T45: 1 | U45: 公立 | V45: 1 | W45: 小学校 | X45: 201 | Y45: 長崎市 | Z45: 高島小学校 | AA45: 94030 | AB45: 高島 | AT45: 43 | AU45: 11.7 | AV45: 124 | AW45: 45 | BC45: 44 | BD45: 12.1 | BE45: 118
D46: 15 | E46: 長崎市立小榊小学校 | F46: 90210 | G46: 201 | H46: 長崎市 | I46: 1 | T46: 1 | U46: 公立 | V46: 1 | W46: 小学校 | X46: 201 | Y46: 長崎市 | Z46: 野母崎小学校 | AA46: 94060 | AB46: 野母 | AT46: 44 | AU46: 11.8 | AV46: 125 | AW46: 46 | BC46: 45 | BD46: 12.2 | BE46: 119
D47: 16 | E47: 長崎市立飽浦小学校 | F47: 90230 | G47: 201 | H47: 長崎市 | I47: 1 | T47: 1 | U47: 公立 | V47: 1 | W47: 小学校 | X47: 201 | Y47: 長崎市 | Z47: 蚊焼小学校 | AA47: 94090 | AB47: 蚊焼 | AT47: 45 | AU47: 11.9 | AV47: 126 | BC47: 46 | BD47: 12.3 | BE47: 120
D48: 17 | E48: 長崎市立朝日小学校 | F48: 90240 | G48: 201 | H48: 長崎市 | I48: 1 | T48: 1 | U48: 公立 | V48: 1 | W48: 小学校 | X48: 201 | Y48: 長崎市 | Z48: 為石小学校 | AA48: 94100 | AB48: 為石 | AT48: 46 | AU48: 12 | AV48: 127 | BC48: 47 | BD48: 12.4 | BE48: 121
D49: 18 | E49: 長崎市立稲佐小学校 | F49: 90250 | G49: 201 | H49: 長崎市 | I49: 1 | T49: 1 | U49: 公立 | V49: 1 | W49: 小学校 | X49: 201 | Y49: 長崎市 | Z49: 川原小学校 | AA49: 94110 | AB49: 川原 | AT49: 47 | AU49: 12.1 | AV49: 128 | BC49: 48 | BD49: 12.5 | BE49: 122
D50: 19 | E50: 長崎市立城山小学校 | F50: 90260 | G50: 201 | H50: 長崎市 | I50: 1 | T50: 1 | U50: 公立 | V50: 1 | W50: 小学校 | X50: 201 | Y50: 長崎市 | Z50: 村松小学校 | AA50: 94200 | AB50: 村松 | AT50: 48 | AU50: 12.2 | AV50: 129 | BC50: 49 | BD50: 12.6 | BE50: 123
D51: 20 | E51: 長崎市立西城山小学校 | F51: 90270 | G51: 201 | H51: 長崎市 | I51: 1 | T51: 1 | U51: 公立 | V51: 1 | W51: 小学校 | X51: 201 | Y51: 長崎市 | Z51: 長浦小学校 | AA51: 94210 | AB51: 長浦 | AT51: 49 | AU51: 12.3 | AV51: 130 | BC51: 50 | BD51: 12.7 | BE51: 124
D52: 21 | E52: 長崎市立西町小学校 | F52: 90280 | G52: 201 | H52: 長崎市 | I52: 1 | T52: 1 | U52: 公立 | V52: 1 | W52: 小学校 | X52: 201 | Y52: 長崎市 | Z52: 形上小学校 | AA52: 94230 | AB52: 形上 | AT52: 50 | AU52: 12.4 | AV52: 131 | BC52: 51 | BD52: 12.8 | BE52: 125
D53: 22 | E53: 長崎市立西北小学校 | F53: 90290 | G53: 201 | H53: 長崎市 | I53: 1 | T53: 1 | U53: 公立 | V53: 1 | W53: 小学校 | X53: 201 | Y53: 長崎市 | Z53: 神浦小学校 | AA53: 94420 | AB53: 神浦 | AT53: 51 | AU53: 12.5 | AV53: 132 | BC53: 52 | BD53: 12.9 | BE53: 126
D54: 23 | E54: 長崎市立滑石小学校 | F54: 90300 | G54: 201 | H54: 長崎市 | I54: 1 | T54: 1 | U54: 公立 | V54: 1 | W54: 小学校 | X54: 201 | Y54: 長崎市 | Z54: 池島小学校 | AA54: 94430 | AB54: 池島 | AT54: 52 | AU54: 12.6 | AV54: 133 | BC54: 53 | BD54: 13 | BE54: 127
D55: 24 | E55: 長崎市立大園小学校 | F55: 90310 | G55: 201 | H55: 長崎市 | I55: 1 | T55: 1 | U55: 公立 | V55: 1 | W55: 小学校 | X55: 201 | Y55: 長崎市 | Z55: 出津小学校 | AA55: 94440 | AB55: 出津 | AT55: 53 | AU55: 12.7 | AV55: 134 | BC55: 54 | BD55: 13.1 | BE55: 128
D56: 25 | E56: 長崎市立北陽小学校 | F56: 90320 | G56: 201 | H56: 長崎市 | I56: 1 | T56: 1 | U56: 公立 | V56: 1 | W56: 小学校 | X56: 201 | Y56: 長崎市 | Z56: 黒崎東小学校 | AA56: 94450 | AB56: 黒崎東 | AT56: 54 | AU56: 12.8 | AV56: 135 | BC56: 55 | BD56: 13.2 | BE56: 129
D57: 26 | E57: 長崎市立西浦上小学校 | F57: 90330 | G57: 201 | H57: 長崎市 | I57: 1 | T57: 1 | U57: 公立 | V57: 1 | W57: 小学校 | X57: 201 | Y57: 長崎市 | Z57: 小江原小学校 | AA57: 99010 | AB57: 小江原 | AT57: 55 | AU57: 12.9 | AV57: 136 | BC57: 56 | BD57: 13.3 | BE57: 130
D58: 27 | E58: 長崎市立川平小学校 | F58: 90340 | G58: 201 | H58: 長崎市 | I58: 1 | T58: 1 | U58: 公立 | V58: 1 | W58: 小学校 | X58: 201 | Y58: 長崎市 | Z58: 横尾小学校 | AA58: 99020 | AB58: 横尾 | AT58: 56 | AU58: 13 | AV58: 137 | BC58: 57 | BD58: 13.4 | BE58: 131
D59: 28 | E59: 長崎市立三原小学校 | F59: 90350 | G59: 201 | H59: 長崎市 | I59: 1 | T59: 1 | U59: 公立 | V59: 1 | W59: 小学校 | X59: 201 | Y59: 長崎市 | Z59: 虹が丘小学校 | AA59: 99030 | AB59: 虹が丘 | AT59: 57 | AU59: 13.1 | AV59: 138 | BC59: 58 | BD59: 13.5 | BE59: 132
D60: 29 | E60: 長崎市立高尾小学校 | F60: 90360 | G60: 201 | H60: 長崎市 | I60: 1 | T60: 1 | U60: 公立 | V60: 1 | W60: 小学校 | X60: 201 | Y60: 長崎市 | Z60: 西山台小学校 | AA60: 99040 | AB60: 西山台 | AT60: 58 | AU60: 13.2 | AV60: 139 | BC60: 59 | BD60: 13.6 | BE60: 133
D61: 30 | E61: 長崎市立山里小学校 | F61: 90370 | G61: 201 | H61: 長崎市 | I61: 1 | T61: 1 | U61: 公立 | V61: 1 | W61: 小学校 | X61: 201 | Y61: 長崎市 | Z61: 南陽小学校 | AA61: 99050 | AB61: 南陽 | AT61: 59 | AU61: 13.3 | AV61: 140 | BC61: 60 | BD61: 13.7 | BE61: 134
D62: 31 | E62: 長崎市立坂本小学校 | F62: 90380 | G62: 201 | H62: 長崎市 | I62: 1 | T62: 1 | U62: 公立 | V62: 1 | W62: 小学校 | X62: 201 | Y62: 長崎市 | Z62: 南陽小学校 開成分校 | AA62: 99053 | AB62: 南陽 開成分校 | AT62: 60 | AU62: 13.4 | AV62: 141 | BC62: 61 | BD62: 13.8 | BE62: 135
D63: 32 | E63: 長崎市立銭座小学校 | F63: 90390 | G63: 201 | H63: 長崎市 | I63: 1 | T63: 1 | U63: 公立 | V63: 1 | W63: 小学校 | X63: 201 | Y63: 長崎市 | Z63: 橘小学校 | AA63: 99060 | AB63: 橘 | AT63: 61 | AU63: 13.5 | AV63: 142 | BC63: 62 | BD63: 13.9 | BE63: 136
D64: 33 | E64: 長崎市立茂木小学校 | F64: 90400 | G64: 201 | H64: 長崎市 | I64: 1 | T64: 1 | U64: 公立 | V64: 1 | W64: 小学校 | X64: 201 | Y64: 長崎市 | Z64: 南長崎小学校 | AA64: 99070 | AB64: 南長崎 | AT64: 62 | AU64: 13.6 | AV64: 143 | BC64: 63 | BD64: 14 | BE64: 137
D65: 34 | E65: 長崎市立日吉小学校 | F65: 90410 | G65: 201 | H65: 長崎市 | I65: 1 | T65: 1 | U65: 公立 | V65: 1 | W65: 小学校 | X65: 201 | Y65: 長崎市 | Z65: 鳴見台小学校 | AA65: 99080 | AB65: 鳴見台 | AT65: 63 | AU65: 13.7 | AV65: 144 | BC65: 64 | BD65: 14.1 | BE65: 138
D66: 35 | E66: 長崎市立南小学校 | F66: 90420 | G66: 201 | H66: 長崎市 | I66: 1 | T66: 1 | U66: 公立 | V66: 1 | W66: 小学校 | X66: 201 | Y66: 長崎市 | Z66: 桜が丘小学校 | AA66: 99090 | AB66: 桜が丘 | AT66: 64 | AU66: 13.8 | AV66: 145 | BC66: 65 | BD66: 14.2 | BE66: 139
D67: 36 | E67: 長崎市立式見小学校 | F67: 90430 | G67: 201 | H67: 長崎市 | I67: 1 | T67: 1 | U67: 公立 | V67: 1 | W67: 小学校 | X67: 201 | Y67: 長崎市 | Z67: 諏訪小学校 | AA67: 99100 | AB67: 諏訪 | AT67: 65 | AU67: 13.9 | AV67: 146 | BC67: 66 | BD67: 14.3 | BE67: 140
D68: 37 | E68: 長崎市立矢上小学校 | F68: 90440 | G68: 201 | H68: 長崎市 | I68: 1 | T68: 1 | U68: 公立 | V68: 1 | W68: 小学校 | X68: 201 | Y68: 長崎市 | Z68: 桜町小学校 | AA68: 99110 | AB68: 桜町 | AT68: 66 | AU68: 14 | AV68: 147 | BC68: 67 | BD68: 14.4 | BE68: 141
D69: 38 | E69: 長崎市立戸石小学校 | F69: 90450 | G69: 201 | H69: 長崎市 | I69: 1 | T69: 1 | U69: 公立 | V69: 1 | W69: 小学校 | X69: 201 | Y69: 長崎市 | Z69: 大浦小学校 | AA69: 99120 | AB69: 大浦 | AT69: 67 | AU69: 14.1 | AV69: 148 | BC69: 68 | BD69: 14.5 | BE69: 142
D70: 39 | E70: 長崎市立古賀小学校 | F70: 90460 | G70: 201 | H70: 長崎市 | I70: 1 | T70: 1 | U70: 公立 | V70: 1 | W70: 小学校 | X70: 201 | Y70: 長崎市 | Z70: 高城台小学校 | AA70: 99130 | AB70: 高城台 | AT70: 68 | AU70: 14.2 | AV70: 149 | BC70: 69 | BD70: 14.6 | BE70: 143
D71: 40 | E71: 長崎市立三重小学校 | F71: 90470 | G71: 201 | H71: 長崎市 | I71: 1 | T71: 1 | U71: 公立 | V71: 1 | W71: 小学校 | X71: 201 | Y71: 長崎市 | Z71: 高城台小学校 現川分校 | AA71: 99133 | AB71: 高城台 現川分校 | AT71: 69 | AU71: 14.3 | AV71: 150 | BC71: 70 | BD71: 14.7 | BE71: 144
D72: 41 | E72: 長崎市立畝刈小学校 | F72: 90480 | G72: 201 | H72: 長崎市 | I72: 1 | T72: 1 | U72: 公立 | V72: 1 | W72: 小学校 | X72: 201 | Y72: 長崎市 | Z72: 晴海台小学校 | AA72: 99540 | AB72: 晴海台 | AT72: 70 | AU72: 14.4 | AV72: 151 | BC72: 71 | BD72: 14.8 | BE72: 145
D73: 42 | E73: 長崎市立女の都小学校 | F73: 90490 | G73: 201 | H73: 長崎市 | I73: 1 | T73: 1 | U73: 公立 | V73: 1 | W73: 小学校 | X73: 202 | Y73: 佐世保市 | Z73: 宮小学校 | AA73: 90510 | AB73: 宮 | AT73: 71 | AU73: 14.5 | AV73: 152 | BC73: 72 | BD73: 14.9 | BE73: 146
D74: 43 | E74: 長崎市立香焼小学校 | F74: 94010 | G74: 201 | H74: 長崎市 | I74: 1 | T74: 1 | U74: 公立 | V74: 1 | W74: 小学校 | X74: 202 | Y74: 佐世保市 | Z74: 三川内小学校 | AA74: 90520 | AB74: 三川内 | AT74: 72 | AU74: 14.6 | AV74: 153 | BC74: 73 | BD74: 15 | BE74: 147
D75: 44 | E75: 長崎市立伊王島小学校 | F75: 94020 | G75: 201 | H75: 長崎市 | I75: 1 | T75: 1 | U75: 公立 | V75: 1 | W75: 小学校 | X75: 202 | Y75: 佐世保市 | Z75: 広田小学校 | AA75: 90530 | AB75: 広田 | AT75: 73 | AU75: 14.7 | AV75: 154 | BC75: 74 | BE75: 148
D76: 45 | E76: 長崎市立高島小学校 | F76: 94030 | G76: 201 | H76: 長崎市 | I76: 1 | T76: 1 | U76: 公立 | V76: 1 | W76: 小学校 | X76: 202 | Y76: 佐世保市 | Z76: 早岐小学校 | AA76: 90540 | AB76: 早岐 | AT76: 74 | AU76: 14.8 | AV76: 155 | BC76: 75 | BE76: 149
D77: 46 | E77: 長崎市立高浜小学校 | F77: 94050 | G77: 201 | H77: 長崎市 | I77: 1 | T77: 1 | U77: 公立 | V77: 1 | W77: 小学校 | X77: 202 | Y77: 佐世保市 | Z77: 江上小学校 | AA77: 90550 | AB77: 江上 | AT77: 75 | AU77: 14.9 | AV77: 156 | BC77: 76 | BE77: 150
D78: 47 | E78: 長崎市立野母小学校 | F78: 94060 | G78: 201 | H78: 長崎市 | I78: 1 | T78: 1 | U78: 公立 | V78: 1 | W78: 小学校 | X78: 202 | Y78: 佐世保市 | Z78: 針尾小学校 | AA78: 90560 | AB78: 針尾 | AT78: 76 | AU78: 15 | AV78: 157 | BC78: 77 | BE78: 151
D79: 48 | E79: 長崎市立脇岬小学校 | F79: 94070 | G79: 201 | H79: 長崎市 | I79: 1 | T79: 1 | U79: 公立 | V79: 1 | W79: 小学校 | X79: 202 | Y79: 佐世保市 | Z79: 黒髪小学校 | AA79: 90570 | AB79: 黒髪 | AT79: 77 | AV79: 158 | BC79: 78 | BE79: 152
D80: 49 | E80: 長崎市立樺島小学校 | F80: 94080 | G80: 201 | H80: 長崎市 | I80: 1 | T80: 1 | U80: 公立 | V80: 1 | W80: 小学校 | X80: 202 | Y80: 佐世保市 | Z80: 日宇小学校 | AA80: 90580 | AB80: 日宇 | AT80: 78 | AV80: 159 | BC80: 79 | BE80: 153
D81: 50 | E81: 長崎市立蚊焼小学校 | F81: 94090 | G81: 201 | H81: 長崎市 | I81: 1 | T81: 1 | U81: 公立 | V81: 1 | W81: 小学校 | X81: 202 | Y81: 佐世保市 | Z81: 天神小学校 | AA81: 90590 | AB81: 天神 | AT81: 79 | AV81: 160 | BC81: 80 | BE81: 154
D82: 51 | E82: 長崎市立為石小学校 | F82: 94100 | G82: 201 | H82: 長崎市 | I82: 1 | T82: 1 | U82: 公立 | V82: 1 | W82: 小学校 | X82: 202 | Y82: 佐世保市 | Z82: 福石小学校 | AA82: 90600 | AB82: 福石 | AT82: 80 | AV82: 161 | BC82: 81 | BE82: 155
D83: 52 | E83: 長崎市立川原小学校 | F83: 94110 | G83: 201 | H83: 長崎市 | I83: 1 | T83: 1 | U83: 公立 | V83: 1 | W83: 小学校 | X83: 202 | Y83: 佐世保市 | Z83: 木風小学校 | AA83: 90610 | AB83: 木風 | AT83: 81 | AV83: 162 | BC83: 82 | BE83: 156
D84: 53 | E84: 長崎市立村松小学校 | F84: 94200 | G84: 201 | H84: 長崎市 | I84: 1 | T84: 1 | U84: 公立 | V84: 1 | W84: 小学校 | X84: 202 | Y84: 佐世保市 | Z84: 潮見小学校 | AA84: 90620 | AB84: 潮見 | AT84: 82 | AV84: 163 | BE84: 157
D85: 54 | E85: 長崎市立長浦小学校 | F85: 94210 | G85: 201 | H85: 長崎市 | I85: 1 | T85: 1 | U85: 公立 | V85: 1 | W85: 小学校 | X85: 202 | Y85: 佐世保市 | Z85: 白南風小学校 | AA85: 90630 | AB85: 白南風 | AT85: 83 | AV85: 164 | BE85: 158
D86: 55 | E86: 長崎市立尾戸小学校 | F86: 94220 | G86: 201 | H86: 長崎市 | I86: 1 | T86: 1 | U86: 公立 | V86: 1 | W86: 小学校 | X86: 202 | Y86: 佐世保市 | Z86: 小佐世保小学校 | AA86: 90640 | AB86: 小佐世保 | AT86: 84 | AV86: 165 | BE86: 159
D87: 56 | E87: 長崎市立形上小学校 | F87: 94230 | G87: 201 | H87: 長崎市 | I87: 1 | T87: 1 | U87: 公立 | V87: 1 | W87: 小学校 | X87: 202 | Y87: 佐世保市 | Z87: 山手小学校 | AA87: 90670 | AB87: 山手 | AT87: 85 | AV87: 166 | BE87: 160
D88: 57 | E88: 長崎市立神浦小学校 | F88: 94420 | G88: 201 | H88: 長崎市 | I88: 1 | T88: 1 | U88: 公立 | V88: 1 | W88: 小学校 | X88: 202 | Y88: 佐世保市 | Z88: 山手小学校 烏帽子分校 | AA88: 90673 | AB88: 山手 烏帽子分校 | AT88: 86 | AV88: 167 | BE88: 161
D89: 58 | E89: 長崎市立池島小学校 | F89: 94430 | G89: 201 | H89: 長崎市 | I89: 1 | T89: 1 | U89: 公立 | V89: 1 | W89: 小学校 | X89: 202 | Y89: 佐世保市 | Z89: 春日小学校 | AA89: 90680 | AB89: 春日 | AT89: 87 | AV89: 168 | BE89: 162
D90: 59 | E90: 長崎市立出津小学校 | F90: 94440 | G90: 201 | H90: 長崎市 | I90: 1 | T90: 1 | U90: 公立 | V90: 1 | W90: 小学校 | X90: 202 | Y90: 佐世保市 | Z90: 大久保小学校 | AA90: 90710 | AB90: 大久保 | AT90: 88 | AV90: 169 | BE90: 163
D91: 60 | E91: 長崎市立黒崎東小学校 | F91: 94450 | G91: 201 | H91: 長崎市 | I91: 1 | T91: 1 | U91: 公立 | V91: 1 | W91: 小学校 | X91: 202 | Y91: 佐世保市 | Z91: 赤崎小学校 | AA91: 90740 | AB91: 赤崎 | AT91: 89 | AV91: 170 | BE91: 164
D92: 61 | E92: 長崎市立小江原小学校 | F92: 99010 | G92: 201 | H92: 長崎市 | I92: 1 | T92: 1 | U92: 公立 | V92: 1 | W92: 小学校 | X92: 202 | Y92: 佐世保市 | Z92: 船越小学校 | AA92: 90750 | AB92: 船越 | AT92: 90 | AV92: 171 | BE92: 165
D93: 62 | E93: 長崎市立横尾小学校 | F93: 99020 | G93: 201 | H93: 長崎市 | I93: 1 | T93: 1 | U93: 公立 | V93: 1 | W93: 小学校 | X93: 202 | Y93: 佐世保市 | Z93: 庵浦小学校 | AA93: 90760 | AB93: 庵浦 | AT93: 91 | AV93: 172 | BE93: 166
D94: 63 | E94: 長崎市立虹が丘小学校 | F94: 99030 | G94: 201 | H94: 長崎市 | I94: 1 | T94: 1 | U94: 公立 | V94: 1 | W94: 小学校 | X94: 202 | Y94: 佐世保市 | Z94: 俵浦小学校 | AA94: 90770 | AB94: 俵浦 | AT94: 92 | AV94: 173 | BE94: 167
D95: 64 | E95: 長崎市立西山台小学校 | F95: 99040 | G95: 201 | H95: 長崎市 | I95: 1 | T95: 1 | U95: 公立 | V95: 1 | W95: 小学校 | X95: 202 | Y95: 佐世保市 | Z95: 日野小学校 | AA95: 90780 | AB95: 日野 | AT95: 93 | AV95: 174 | BE95: 168
D96: 65 | E96: 長崎市立南陽小学校 | F96: 99050 | G96: 201 | H96: 長崎市 | I96: 1 | T96: 1 | U96: 公立 | V96: 1 | W96: 小学校 | X96: 202 | Y96: 佐世保市 | Z96: 黒島小中学校 | AA96: 90790 | AB96: 黒島 | AT96: 94 | AV96: 175 | BE96: 169
D97: 66 | E97: 長崎市立南陽小学校開成分校 | F97: 99053 | G97: 201 | H97: 長崎市 | I97: 1 | T97: 1 | U97: 公立 | V97: 1 | W97: 小学校 | X97: 202 | Y97: 佐世保市 | Z97: 浅子小中学校 | AA97: 90800 | AB97: 浅子 | AT97: 95 | AV97: 176 | BE97: 170
D98: 67 | E98: 長崎市立橘小学校 | F98: 99060 | G98: 201 | H98: 長崎市 | I98: 1 | T98: 1 | U98: 公立 | V98: 1 | W98: 小学校 | X98: 202 | Y98: 佐世保市 | Z98: 相浦小学校 | AA98: 90810 | AB98: 相浦 | AT98: 96 | AV98: 177 | BE98: 171
D99: 68 | E99: 長崎市立南長崎小学校 | F99: 99070 | G99: 201 | H99: 長崎市 | I99: 1 | T99: 1 | U99: 公立 | V99: 1 | W99: 小学校 | X99: 202 | Y99: 佐世保市 | Z99: 相浦小学校 高島分校 | AA99: 90813 | AB99: 相浦 高島分校 | AT99: 97 | AV99: 178 | BE99: 172
D100: 69 | E100: 長崎市立鳴見台小学校 | F100: 99080 | G100: 201 | H100: 長崎市 | I100: 1 | T100: 1 | U100: 公立 | V100: 1 | W100: 小学校 | X100: 202 | Y100: 佐世保市 | Z100: 中里小学校 | AA100: 90820 | AB100: 中里 | AV100: 179 | BE100: 173
D101: 70 | E101: 長崎市立桜が丘小学校 | F101: 99090 | G101: 201 | H101: 長崎市 | I101: 1 | T101: 1 | U101: 公立 | V101: 1 | W101: 小学校 | X101: 202 | Y101: 佐世保市 | Z101: 皆瀬小学校 | AA101: 90830 | AB101: 皆瀬 | AV101: 180 | BE101: 174
D102: 71 | E102: 長崎市立諏訪小学校 | F102: 99100 | G102: 201 | H102: 長崎市 | I102: 1 | T102: 1 | U102: 公立 | V102: 1 | W102: 小学校 | X102: 202 | Y102: 佐世保市 | Z102: 大野小学校 | AA102: 90840 | AB102: 大野 | AV102: 181 | BE102: 175
D103: 72 | E103: 長崎市立桜町小学校 | F103: 99110 | G103: 201 | H103: 長崎市 | I103: 1 | T103: 1 | U103: 公立 | V103: 1 | W103: 小学校 | X103: 202 | Y103: 佐世保市 | Z103: 柚木小学校 | AA103: 90850 | AB103: 柚木 | AV103: 182 | BE103: 176
D104: 73 | E104: 長崎市立大浦小学校 | F104: 99120 | G104: 201 | H104: 長崎市 | I104: 1 | T104: 1 | U104: 公立 | V104: 1 | W104: 小学校 | X104: 202 | Y104: 佐世保市 | Z104: 港小学校 | AA104: 90860 | AB104: 港 | AV104: 183 | BE104: 177
D105: 74 | E105: 長崎市立高城台小学校 | F105: 99130 | G105: 201 | H105: 長崎市 | I105: 1 | T105: 1 | U105: 公立 | V105: 1 | W105: 小学校 | X105: 202 | Y105: 佐世保市 | Z105: 花高小学校 | AA105: 90870 | AB105: 花高 | AV105: 184 | BE105: 178
D106: 75 | E106: 長崎市立高城台小現川分校 | F106: 99133 | G106: 201 | H106: 長崎市 | I106: 1 | T106: 1 | U106: 公立 | V106: 1 | W106: 小学校 | X106: 202 | Y106: 佐世保市 | Z106: 相浦西小学校 | AA106: 90880 | AB106: 相浦西 | AV106: 185 | BE106: 179
D107: 76 | E107: 長崎市立晴海台小学校 | F107: 99540 | G107: 201 | H107: 長崎市 | I107: 1 | T107: 1 | U107: 公立 | V107: 1 | W107: 小学校 | X107: 202 | Y107: 佐世保市 | Z107: 相浦西小学校 大崎分校 | AA107: 90883 | AB107: 相浦西 大崎分校 | AV107: 186 | BE107: 180
D108: 77 | E108: 佐世保市立宮小学校 | F108: 90510 | G108: 202 | H108: 佐世保市 | I108: 2 | T108: 1 | U108: 公立 | V108: 1 | W108: 小学校 | X108: 202 | Y108: 佐世保市 | Z108: 大塔小学校 | AA108: 90890 | AB108: 大塔 | AV108: 187 | BE108: 181
D109: 78 | E109: 佐世保市立三川内小学校 | F109: 90520 | G109: 202 | H109: 佐世保市 | I109: 2 | T109: 1 | U109: 公立 | V109: 1 | W109: 小学校 | X109: 202 | Y109: 佐世保市 | Z109: 金比良小学校 | AA109: 90900 | AB109: 金比良 | AV109: 188 | BE109: 182
D110: 79 | E110: 佐世保市立広田小学校 | F110: 90530 | G110: 202 | H110: 佐世保市 | I110: 2 | T110: 1 | U110: 公立 | V110: 1 | W110: 小学校 | X110: 202 | Y110: 佐世保市 | Z110: 祇園小学校 | AA110: 90910 | AB110: 祇園 | AV110: 189 | BE110: 183
D111: 80 | E111: 佐世保市立早岐小学校 | F111: 90540 | G111: 202 | H111: 佐世保市 | I111: 2 | T111: 1 | U111: 公立 | V111: 1 | W111: 小学校 | X111: 202 | Y111: 佐世保市 | Z111: 清水小学校 | AA111: 90920 | AB111: 清水 | AV111: 190 | BE111: 184
D112: 81 | E112: 佐世保市立江上小学校 | F112: 90550 | G112: 202 | H112: 佐世保市 | I112: 2 | T112: 1 | U112: 公立 | V112: 1 | W112: 小学校 | X112: 202 | Y112: 佐世保市 | Z112: 宇久小学校 | AA112: 96570 | AB112: 宇久 | AV112: 191 | BE112: 185
D113: 82 | E113: 佐世保市立針尾小学校 | F113: 90560 | G113: 202 | H113: 佐世保市 | I113: 2 | T113: 1 | U113: 公立 | V113: 1 | W113: 小学校 | X113: 202 | Y113: 佐世保市 | Z113: 神浦小学校 | AA113: 96610 | AB113: 神浦 | AV113: 192 | BE113: 186
D114: 83 | E114: 佐世保市立黒髪小学校 | F114: 90570 | G114: 202 | H114: 佐世保市 | I114: 2 | T114: 1 | U114: 公立 | V114: 1 | W114: 小学校 | X114: 202 | Y114: 佐世保市 | Z114: 小佐々小学校 | AA114: 96720 | AB114: 小佐々 | AV114: 193
D115: 84 | E115: 佐世保市立日宇小学校 | F115: 90580 | G115: 202 | H115: 佐世保市 | I115: 2 | T115: 1 | U115: 公立 | V115: 1 | W115: 小学校 | X115: 202 | Y115: 佐世保市 | Z115: 楠栖小学校 | AA115: 96730 | AB115: 楠栖 | AV115: 194
D116: 85 | E116: 佐世保市立天神小学校 | F116: 90590 | G116: 202 | H116: 佐世保市 | I116: 2 | T116: 1 | U116: 公立 | V116: 1 | W116: 小学校 | X116: 202 | Y116: 佐世保市 | Z116: 吉井南小学校 | AA116: 96760 | AB116: 吉井南 | AV116: 195
D117: 86 | E117: 佐世保市立福石小学校 | F117: 90600 | G117: 202 | H117: 佐世保市 | I117: 2 | T117: 1 | U117: 公立 | V117: 1 | W117: 小学校 | X117: 202 | Y117: 佐世保市 | Z117: 吉井北小学校 | AA117: 96770 | AB117: 吉井北
D118: 87 | E118: 佐世保市立木風小学校 | F118: 90610 | G118: 202 | H118: 佐世保市 | I118: 2 | T118: 1 | U118: 公立 | V118: 1 | W118: 小学校 | X118: 202 | Y118: 佐世保市 | Z118: 世知原小学校 | AA118: 96780 | AB118: 世知原
D119: 88 | E119: 佐世保市立潮見小学校 | F119: 90620 | G119: 202 | H119: 佐世保市 | I119: 2 | T119: 1 | U119: 公立 | V119: 1 | W119: 小学校 | X119: 203 | Y119: 島原市 | Z119: 第一小学校 | AA119: 91010 | AB119: 第一
D120: 89 | E120: 佐世保市立白南風小学校 | F120: 90630 | G120: 202 | H120: 佐世保市 | I120: 2 | T120: 1 | U120: 公立 | V120: 1 | W120: 小学校 | X120: 203 | Y120: 島原市 | Z120: 第二小学校 | AA120: 91020 | AB120: 第二
D121: 90 | E121: 佐世保市立小佐世保小学校 | F121: 90640 | G121: 202 | H121: 佐世保市 | I121: 2 | T121: 1 | U121: 公立 | V121: 1 | W121: 小学校 | X121: 203 | Y121: 島原市 | Z121: 第三小学校 | AA121: 91030 | AB121: 第三
D122: 91 | E122: 佐世保市立山手小学校 | F122: 90670 | G122: 202 | H122: 佐世保市 | I122: 2 | T122: 1 | U122: 公立 | V122: 1 | W122: 小学校 | X122: 203 | Y122: 島原市 | Z122: 第四小学校 | AA122: 91040 | AB122: 第四
D123: 92 | E123: 佐世保市立山手小烏帽子分校 | F123: 90673 | G123: 202 | H123: 佐世保市 | I123: 2 | T123: 1 | U123: 公立 | V123: 1 | W123: 小学校 | X123: 203 | Y123: 島原市 | Z123: 三会小学校 | AA123: 91050 | AB123: 三会
D124: 93 | E124: 佐世保市立春日小学校 | F124: 90680 | G124: 202 | H124: 佐世保市 | I124: 2 | T124: 1 | U124: 公立 | V124: 1 | W124: 小学校 | X124: 203 | Y124: 島原市 | Z124: 三会小学校 長貫分校 | AA124: 91053 | AB124: 三会 長貫分校
D125: 94 | E125: 佐世保市立大久保小学校 | F125: 90710 | G125: 202 | H125: 佐世保市 | I125: 2 | T125: 1 | U125: 公立 | V125: 1 | W125: 小学校 | X125: 203 | Y125: 島原市 | Z125: 第五小学校 | AA125: 91060 | AB125: 第五
D126: 95 | E126: 佐世保市立赤崎小学校 | F126: 90740 | G126: 202 | H126: 佐世保市 | I126: 2 | T126: 1 | U126: 公立 | V126: 1 | W126: 小学校 | X126: 203 | Y126: 島原市 | Z126: 大三東小学校 | AA126: 95510 | AB126: 大三東
D127: 96 | E127: 佐世保市立船越小学校 | F127: 90750 | G127: 202 | H127: 佐世保市 | I127: 2 | T127: 1 | U127: 公立 | V127: 1 | W127: 小学校 | X127: 203 | Y127: 島原市 | Z127: 高野小学校 | AA127: 95520 | AB127: 高野
D128: 97 | E128: 佐世保市立庵浦小学校 | F128: 90760 | G128: 202 | H128: 佐世保市 | I128: 2 | T128: 1 | U128: 公立 | V128: 1 | W128: 小学校 | X128: 203 | Y128: 島原市 | Z128: 湯江小学校 | AA128: 95530 | AB128: 湯江
D129: 98 | E129: 佐世保市立俵浦小学校 | F129: 90770 | G129: 202 | H129: 佐世保市 | I129: 2 | T129: 1 | U129: 公立 | V129: 1 | W129: 小学校 | X129: 204 | Y129: 諫早市 | Z129: 諫早小学校 | AA129: 91510 | AB129: 諫早
D130: 99 | E130: 佐世保市立日野小学校 | F130: 90780 | G130: 202 | H130: 佐世保市 | I130: 2 | T130: 1 | U130: 公立 | V130: 1 | W130: 小学校 | X130: 204 | Y130: 諫早市 | Z130: 北諫早小学校 | AA130: 91520 | AB130: 北諫早
D131: 100 | E131: 佐世保市立黒島小学校 | F131: 90790 | G131: 202 | H131: 佐世保市 | I131: 2 | T131: 1 | U131: 公立 | V131: 1 | W131: 小学校 | X131: 204 | Y131: 諫早市 | Z131: 小野小学校 | AA131: 91530 | AB131: 小野
D132: 101 | E132: 佐世保市立浅子小学校 | F132: 90800 | G132: 202 | H132: 佐世保市 | I132: 2 | T132: 1 | U132: 公立 | V132: 1 | W132: 小学校 | X132: 204 | Y132: 諫早市 | Z132: 有喜小学校 | AA132: 91540 | AB132: 有喜
D133: 102 | E133: 佐世保市立相浦小学校 | F133: 90810 | G133: 202 | H133: 佐世保市 | I133: 2 | T133: 1 | U133: 公立 | V133: 1 | W133: 小学校 | X133: 204 | Y133: 諫早市 | Z133: 真津山小学校 | AA133: 91550 | AB133: 真津山
D134: 103 | E134: 佐世保市立相浦小高島分校 | F134: 90813 | G134: 202 | H134: 佐世保市 | I134: 2 | T134: 1 | U134: 公立 | V134: 1 | W134: 小学校 | X134: 204 | Y134: 諫早市 | Z134: 本野小学校 | AA134: 91560 | AB134: 本野
D135: 104 | E135: 佐世保市立中里小学校 | F135: 90820 | G135: 202 | H135: 佐世保市 | I135: 2 | T135: 1 | U135: 公立 | V135: 1 | W135: 小学校 | X135: 204 | Y135: 諫早市 | Z135: 長田小学校 | AA135: 91570 | AB135: 長田
D136: 105 | E136: 佐世保市立皆瀬小学校 | F136: 90830 | G136: 202 | H136: 佐世保市 | I136: 2 | T136: 1 | U136: 公立 | V136: 1 | W136: 小学校 | X136: 204 | Y136: 諫早市 | Z136: 上諫早小学校 | AA136: 91580 | AB136: 上諫早
D137: 106 | E137: 佐世保市立大野小学校 | F137: 90840 | G137: 202 | H137: 佐世保市 | I137: 2 | T137: 1 | U137: 公立 | V137: 1 | W137: 小学校 | X137: 204 | Y137: 諫早市 | Z137: 小栗小学校 | AA137: 91590 | AB137: 小栗
D138: 107 | E138: 佐世保市立柚木小学校 | F138: 90850 | G138: 202 | H138: 佐世保市 | I138: 2 | T138: 1 | U138: 公立 | V138: 1 | W138: 小学校 | X138: 204 | Y138: 諫早市 | Z138: 真崎小学校 | AA138: 91600 | AB138: 真崎
D139: 108 | E139: 佐世保市立港小学校 | F139: 90860 | G139: 202 | H139: 佐世保市 | I139: 2 | T139: 1 | U139: 公立 | V139: 1 | W139: 小学校 | X139: 204 | Y139: 諫早市 | Z139: みはる台小学校 | AA139: 91610 | AB139: みはる台
D140: 109 | E140: 佐世保市立花高小学校 | F140: 90870 | G140: 202 | H140: 佐世保市 | I140: 2 | T140: 1 | U140: 公立 | V140: 1 | W140: 小学校 | X140: 204 | Y140: 諫早市 | Z140: 御館山小学校 | AA140: 91620 | AB140: 御館山
D141: 110 | E141: 佐世保市立相浦西小学校 | F141: 90880 | G141: 202 | H141: 佐世保市 | I141: 2 | T141: 1 | U141: 公立 | V141: 1 | W141: 小学校 | X141: 204 | Y141: 諫早市 | Z141: 上山小学校 | AA141: 91630 | AB141: 上山
D142: 111 | E142: 佐世保市立相浦西小大崎分校 | F142: 90883 | G142: 202 | H142: 佐世保市 | I142: 2 | T142: 1 | U142: 公立 | V142: 1 | W142: 小学校 | X142: 204 | Y142: 諫早市 | Z142: 西諫早小学校 | AA142: 91640 | AB142: 西諫早
D143: 112 | E143: 佐世保市立大塔小学校 | F143: 90890 | G143: 202 | H143: 佐世保市 | I143: 2 | T143: 1 | U143: 公立 | V143: 1 | W143: 小学校 | X143: 204 | Y143: 諫早市 | Z143: 真城小学校 | AA143: 91650 | AB143: 真城
D144: 113 | E144: 佐世保市立金比良小学校 | F144: 90900 | G144: 202 | H144: 佐世保市 | I144: 2 | T144: 1 | U144: 公立 | V144: 1 | W144: 小学校 | X144: 204 | Y144: 諫早市 | Z144: 喜々津小学校 | AA144: 94120 | AB144: 喜々津
D145: 114 | E145: 佐世保市立祇園小学校 | F145: 90910 | G145: 202 | H145: 佐世保市 | I145: 2 | T145: 1 | U145: 公立 | V145: 1 | W145: 小学校 | X145: 204 | Y145: 諫早市 | Z145: 大草小学校 | AA145: 94130 | AB145: 大草
D146: 115 | E146: 佐世保市立清水小学校 | F146: 90920 | G146: 202 | H146: 佐世保市 | I146: 2 | T146: 1 | U146: 公立 | V146: 1 | W146: 小学校 | X146: 204 | Y146: 諫早市 | Z146: 伊木力小学校 | AA146: 94140 | AB146: 伊木力
D147: 116 | E147: 佐世保市立宇久小学校 | F147: 96570 | G147: 202 | H147: 佐世保市 | I147: 2 | T147: 1 | U147: 公立 | V147: 1 | W147: 小学校 | X147: 204 | Y147: 諫早市 | Z147: 森山西小学校 | AA147: 95010 | AB147: 森山西
D148: 117 | E148: 佐世保市立神浦小学校 | F148: 96610 | G148: 202 | H148: 佐世保市 | I148: 2 | T148: 1 | U148: 公立 | V148: 1 | W148: 小学校 | X148: 204 | Y148: 諫早市 | Z148: 森山東小学校 | AA148: 95020 | AB148: 森山東
D149: 118 | E149: 佐世保市立小佐々小学校 | F149: 96720 | G149: 202 | H149: 佐世保市 | I149: 2 | T149: 1 | U149: 公立 | V149: 1 | W149: 小学校 | X149: 204 | Y149: 諫早市 | Z149: 飯盛西小学校 | AA149: 95030 | AB149: 飯盛西
D150: 119 | E150: 佐世保市立楠栖小学校 | F150: 96730 | G150: 202 | H150: 佐世保市 | I150: 2 | T150: 1 | U150: 公立 | V150: 1 | W150: 小学校 | X150: 204 | Y150: 諫早市 | Z150: 飯盛東小学校 | AA150: 95040 | AB150: 飯盛東
D151: 120 | E151: 佐世保市立吉井南小学校 | F151: 96760 | G151: 202 | H151: 佐世保市 | I151: 2 | T151: 1 | U151: 公立 | V151: 1 | W151: 小学校 | X151: 204 | Y151: 諫早市 | Z151: 高来西小学校 | AA151: 95050 | AB151: 高来西
D152: 121 | E152: 佐世保市立吉井北小学校 | F152: 96770 | G152: 202 | H152: 佐世保市 | I152: 2 | T152: 1 | U152: 公立 | V152: 1 | W152: 小学校 | X152: 204 | Y152: 諫早市 | Z152: 湯江小学校 | AA152: 95060 | AB152: 湯江
D153: 122 | E153: 佐世保市立世知原小学校 | F153: 96780 | G153: 202 | H153: 佐世保市 | I153: 2 | T153: 1 | U153: 公立 | V153: 1 | W153: 小学校 | X153: 204 | Y153: 諫早市 | Z153: 長里小学校 | AA153: 95070 | AB153: 長里
D154: 123 | E154: 島原市立第一小学校 | F154: 91010 | G154: 203 | H154: 島原市 | I154: 3 | T154: 1 | U154: 公立 | V154: 1 | W154: 小学校 | X154: 204 | Y154: 諫早市 | Z154: 小長井小学校 | AA154: 95080 | AB154: 小長井
D155: 124 | E155: 島原市立第二小学校 | F155: 91020 | G155: 203 | H155: 島原市 | I155: 3 | T155: 1 | U155: 公立 | V155: 1 | W155: 小学校 | X155: 204 | Y155: 諫早市 | Z155: 遠竹小学校 | AA155: 95090 | AB155: 遠竹
D156: 125 | E156: 島原市立第三小学校 | F156: 91030 | G156: 203 | H156: 島原市 | I156: 3 | T156: 1 | U156: 公立 | V156: 1 | W156: 小学校 | X156: 204 | Y156: 諫早市 | Z156: 喜々津東小学校 | AA156: 99530 | AB156: 喜々津東
D157: 126 | E157: 島原市立第四小学校 | F157: 91040 | G157: 203 | H157: 島原市 | I157: 3 | T157: 1 | U157: 公立 | V157: 1 | W157: 小学校 | X157: 205 | Y157: 大村市 | Z157: 三浦小学校 | AA157: 92010 | AB157: 三浦
D158: 127 | E158: 島原市立三会小学校 | F158: 91050 | G158: 203 | H158: 島原市 | I158: 3 | T158: 1 | U158: 公立 | V158: 1 | W158: 小学校 | X158: 205 | Y158: 大村市 | Z158: 鈴田小学校 | AA158: 92020 | AB158: 鈴田
D159: 128 | E159: 島原市立三会小長貫分校 | F159: 91053 | G159: 203 | H159: 島原市 | I159: 3 | T159: 1 | U159: 公立 | V159: 1 | W159: 小学校 | X159: 205 | Y159: 大村市 | Z159: 三城小学校 | AA159: 92030 | AB159: 三城
D160: 129 | E160: 島原市立第五小学校 | F160: 91060 | G160: 203 | H160: 島原市 | I160: 3 | T160: 1 | U160: 公立 | V160: 1 | W160: 小学校 | X160: 205 | Y160: 大村市 | Z160: 大村小学校 | AA160: 92040 | AB160: 大村
D161: 130 | E161: 島原市立大三東小学校 | F161: 95510 | G161: 203 | H161: 島原市 | I161: 3 | T161: 1 | U161: 公立 | V161: 1 | W161: 小学校 | X161: 205 | Y161: 大村市 | Z161: 東大村小学校 | AA161: 92050 | AB161: 東大村
D162: 131 | E162: 島原市立高野小学校 | F162: 95520 | G162: 203 | H162: 島原市 | I162: 3 | T162: 1 | U162: 公立 | V162: 1 | W162: 小学校 | X162: 205 | Y162: 大村市 | Z162: 西大村小学校 | AA162: 92060 | AB162: 西大村
D163: 132 | E163: 島原市立湯江小学校 | F163: 95530 | G163: 203 | H163: 島原市 | I163: 3 | T163: 1 | U163: 公立 | V163: 1 | W163: 小学校 | X163: 205 | Y163: 大村市 | Z163: 中央小学校 | AA163: 92070 | AB163: 中央
D164: 133 | E164: 諫早市立諫早小学校 | F164: 91510 | G164: 204 | H164: 諫早市 | I164: 4 | T164: 1 | U164: 公立 | V164: 1 | W164: 小学校 | X164: 205 | Y164: 大村市 | Z164: 竹松小学校 | AA164: 92080 | AB164: 竹松
D165: 134 | E165: 諫早市立北諫早小学校 | F165: 91520 | G165: 204 | H165: 諫早市 | I165: 4 | T165: 1 | U165: 公立 | V165: 1 | W165: 小学校 | X165: 205 | Y165: 大村市 | Z165: 萱瀬小学校 | AA165: 92090 | AB165: 萱瀬
D166: 135 | E166: 諫早市立小野小学校 | F166: 91530 | G166: 204 | H166: 諫早市 | I166: 4 | T166: 1 | U166: 公立 | V166: 1 | W166: 小学校 | X166: 205 | Y166: 大村市 | Z166: 黒木小学校 | AA166: 92100 | AB166: 黒木
D167: 136 | E167: 諫早市立有喜小学校 | F167: 91540 | G167: 204 | H167: 諫早市 | I167: 4 | T167: 1 | U167: 公立 | V167: 1 | W167: 小学校 | X167: 205 | Y167: 大村市 | Z167: 福重小学校 | AA167: 92110 | AB167: 福重
D168: 137 | E168: 諫早市立真津山小学校 | F168: 91550 | G168: 204 | H168: 諫早市 | I168: 4 | T168: 1 | U168: 公立 | V168: 1 | W168: 小学校 | X168: 205 | Y168: 大村市 | Z168: 松原小学校 | AA168: 92120 | AB168: 松原
D169: 138 | E169: 諫早市立本野小学校 | F169: 91560 | G169: 204 | H169: 諫早市 | I169: 4 | T169: 1 | U169: 公立 | V169: 1 | W169: 小学校 | X169: 205 | Y169: 大村市 | Z169: 放虎原小学校 | AA169: 92130 | AB169: 放虎原
D170: 139 | E170: 諫早市立長田小学校 | F170: 91570 | G170: 204 | H170: 諫早市 | I170: 4 | T170: 1 | U170: 公立 | V170: 1 | W170: 小学校 | X170: 205 | Y170: 大村市 | Z170: 旭が丘小学校 | AA170: 92140 | AB170: 旭が丘
D171: 140 | E171: 諫早市立上諫早小学校 | F171: 91580 | G171: 204 | H171: 諫早市 | I171: 4 | T171: 1 | U171: 公立 | V171: 1 | W171: 小学校 | X171: 205 | Y171: 大村市 | Z171: 富の原小学校 | AA171: 92150 | AB171: 富の原
D172: 141 | E172: 諫早市立小栗小学校 | F172: 91590 | G172: 204 | H172: 諫早市 | I172: 4 | T172: 1 | U172: 公立 | V172: 1 | W172: 小学校 | X172: 207 | Y172: 平戸市 | Z172: 平戸小学校 | AA172: 93010 | AB172: 平戸
D173: 142 | E173: 諫早市立真崎小学校 | F173: 91600 | G173: 204 | H173: 諫早市 | I173: 4 | T173: 1 | U173: 公立 | V173: 1 | W173: 小学校 | X173: 207 | Y173: 平戸市 | Z173: 田助小学校 | AA173: 93020 | AB173: 田助
D174: 143 | E174: 諫早市立みはる台小学校 | F174: 91610 | G174: 204 | H174: 諫早市 | I174: 4 | T174: 1 | U174: 公立 | V174: 1 | W174: 小学校 | X174: 207 | Y174: 平戸市 | Z174: 中野小学校 | AA174: 93030 | AB174: 中野
D175: 144 | E175: 諫早市立御館山小学校 | F175: 91620 | G175: 204 | H175: 諫早市 | I175: 4 | T175: 1 | U175: 公立 | V175: 1 | W175: 小学校 | X175: 207 | Y175: 平戸市 | Z175: 獅子小学校 | AA175: 93040 | AB175: 獅子
D176: 145 | E176: 諫早市立上山小学校 | F176: 91630 | G176: 204 | H176: 諫早市 | I176: 4 | T176: 1 | U176: 公立 | V176: 1 | W176: 小学校 | X176: 207 | Y176: 平戸市 | Z176: 根獅子小学校 | AA176: 93050 | AB176: 根獅子
D177: 146 | E177: 諫早市立西諫早小学校 | F177: 91640 | G177: 204 | H177: 諫早市 | I177: 4 | T177: 1 | U177: 公立 | V177: 1 | W177: 小学校 | X177: 207 | Y177: 平戸市 | Z177: 紐差小学校 | AA177: 93060 | AB177: 紐差
D178: 147 | E178: 諫早市立真城小学校 | F178: 91650 | G178: 204 | H178: 諫早市 | I178: 4 | T178: 1 | U178: 公立 | V178: 1 | W178: 小学校 | X178: 207 | Y178: 平戸市 | Z178: 大川原小学校 | AA178: 93070 | AB178: 大川原
D179: 148 | E179: 諫早市立喜々津小学校 | F179: 94120 | G179: 204 | H179: 諫早市 | I179: 4 | T179: 1 | U179: 公立 | V179: 1 | W179: 小学校 | X179: 207 | Y179: 平戸市 | Z179: 宝亀小学校 | AA179: 93080 | AB179: 宝亀
D180: 149 | E180: 諫早市立大草小学校 | F180: 94130 | G180: 204 | H180: 諫早市 | I180: 4 | T180: 1 | U180: 公立 | V180: 1 | W180: 小学校 | X180: 207 | Y180: 平戸市 | Z180: 津吉小学校 | AA180: 93110 | AB180: 津吉
D181: 150 | E181: 諫早市立伊木力小学校 | F181: 94140 | G181: 204 | H181: 諫早市 | I181: 4 | T181: 1 | U181: 公立 | V181: 1 | W181: 小学校 | X181: 207 | Y181: 平戸市 | Z181: 志々伎小学校 | AA181: 93120 | AB181: 志々伎
D182: 151 | E182: 諫早市立森山西小学校 | F182: 95010 | G182: 204 | H182: 諫早市 | I182: 4 | T182: 1 | U182: 公立 | V182: 1 | W182: 小学校 | X182: 207 | Y182: 平戸市 | Z182: 志々伎小学校 早福分校 | AA182: 93123 | AB182: 志々伎 早福分校
D183: 152 | E183: 諫早市立森山東小学校 | F183: 95020 | G183: 204 | H183: 諫早市 | I183: 4 | T183: 1 | U183: 公立 | V183: 1 | W183: 小学校 | X183: 207 | Y183: 平戸市 | Z183: 野子小学校 | AA183: 93130 | AB183: 野子
D184: 153 | E184: 諫早市立飯盛西小学校 | F184: 95030 | G184: 204 | H184: 諫早市 | I184: 4 | T184: 1 | U184: 公立 | V184: 1 | W184: 小学校 | X184: 207 | Y184: 平戸市 | Z184: 野子小学校 高島分校 | AA184: 93133 | AB184: 野子 高島分校
D185: 154 | E185: 諫早市立飯盛東小学校 | F185: 95040 | G185: 204 | H185: 諫早市 | I185: 4 | T185: 1 | U185: 公立 | V185: 1 | W185: 小学校 | X185: 207 | Y185: 平戸市 | Z185: 度島小学校 | AA185: 93140 | AB185: 度島
D186: 155 | E186: 諫早市立高来西小学校 | F186: 95050 | G186: 204 | H186: 諫早市 | I186: 4 | T186: 1 | U186: 公立 | V186: 1 | W186: 小学校 | X186: 207 | Y186: 平戸市 | Z186: 大島小学校 | AA186: 96510 | AB186: 大島
D187: 156 | E187: 諫早市立湯江小学校 | F187: 95060 | G187: 204 | H187: 諫早市 | I187: 4 | T187: 1 | U187: 公立 | V187: 1 | W187: 小学校 | X187: 207 | Y187: 平戸市 | Z187: 生月小学校 | AA187: 96520 | AB187: 生月
D188: 157 | E188: 諫早市立長里小学校 | F188: 95070 | G188: 204 | H188: 諫早市 | I188: 4 | T188: 1 | U188: 公立 | V188: 1 | W188: 小学校 | X188: 207 | Y188: 平戸市 | Z188: 山田小学校 | AA188: 96530 | AB188: 山田
D189: 158 | E189: 諫早市立小長井小学校 | F189: 95080 | G189: 204 | H189: 諫早市 | I189: 4 | T189: 1 | U189: 公立 | V189: 1 | W189: 小学校 | X189: 207 | Y189: 平戸市 | Z189: 田平北小学校 | AA189: 96620 | AB189: 田平北
D190: 159 | E190: 諫早市立遠竹小学校 | F190: 95090 | G190: 204 | H190: 諫早市 | I190: 4 | T190: 1 | U190: 公立 | V190: 1 | W190: 小学校 | X190: 207 | Y190: 平戸市 | Z190: 田平南小学校 | AA190: 96630 | AB190: 田平南
D191: 160 | E191: 諫早市立喜々津東小学校 | F191: 99530 | G191: 204 | H191: 諫早市 | I191: 4 | T191: 1 | U191: 公立 | V191: 1 | W191: 小学校 | X191: 207 | Y191: 平戸市 | Z191: 田平東小学校 | AA191: 96640 | AB191: 田平東
D192: 161 | E192: 大村市立三浦小学校 | F192: 92010 | G192: 205 | H192: 大村市 | I192: 5 | T192: 1 | U192: 公立 | V192: 1 | W192: 小学校 | X192: 208 | Y192: 松浦市 | Z192: 御厨小学校 | AA192: 93510 | AB192: 御厨
D193: 162 | E193: 大村市立鈴田小学校 | F193: 92020 | G193: 205 | H193: 大村市 | I193: 5 | T193: 1 | U193: 公立 | V193: 1 | W193: 小学校 | X193: 208 | Y193: 松浦市 | Z193: 星鹿小学校 | AA193: 93520 | AB193: 星鹿
D194: 163 | E194: 大村市立三城小学校 | F194: 92030 | G194: 205 | H194: 大村市 | I194: 5 | T194: 1 | U194: 公立 | V194: 1 | W194: 小学校 | X194: 208 | Y194: 松浦市 | Z194: 田代小学校 | AA194: 93530 | AB194: 田代
D195: 164 | E195: 大村市立大村小学校 | F195: 92040 | G195: 205 | H195: 大村市 | I195: 5 | T195: 1 | U195: 公立 | V195: 1 | W195: 小学校 | X195: 208 | Y195: 松浦市 | Z195: 大崎小学校 | AA195: 93540 | AB195: 大崎
D196: 165 | E196: 大村市立東大村小学校 | F196: 92050 | G196: 205 | H196: 大村市 | I196: 5 | T196: 1 | U196: 公立 | V196: 1 | W196: 小学校 | X196: 208 | Y196: 松浦市 | Z196: 青島小学校 | AA196: 93550 | AB196: 青島
D197: 166 | E197: 大村市立西大村小学校 | F197: 92060 | G197: 205 | H197: 大村市 | I197: 5 | T197: 1 | U197: 公立 | V197: 1 | W197: 小学校 | X197: 208 | Y197: 松浦市 | Z197: 志佐小学校 | AA197: 93560 | AB197: 志佐
D198: 167 | E198: 大村市立中央小学校 | F198: 92070 | G198: 205 | H198: 大村市 | I198: 5 | T198: 1 | U198: 公立 | V198: 1 | W198: 小学校 | X198: 208 | Y198: 松浦市 | Z198: 上志佐小学校 | AA198: 93570 | AB198: 上志佐
D199: 168 | E199: 大村市立竹松小学校 | F199: 92080 | G199: 205 | H199: 大村市 | I199: 5 | T199: 1 | U199: 公立 | V199: 1 | W199: 小学校 | X199: 208 | Y199: 松浦市 | Z199: 調川小学校 | AA199: 93580 | AB199: 調川
D200: 169 | E200: 大村市立萱瀬小学校 | F200: 92090 | G200: 205 | H200: 大村市 | I200: 5 | T200: 1 | U200: 公立 | V200: 1 | W200: 小学校 | X200: 208 | Y200: 松浦市 | Z200: 今福小学校 | AA200: 93590 | AB200: 今福
... 532 more rows

Sheet ken
A1: 令和４年度版 | E1: 参照（例：T_長崎県データ集計、 2022_physical_consider_pref_nagasaki.xls [ken]シート）
A2: 県平均（R０４年度）
G3: 握力 | J3: 上体 | M3: 長座 | P3: 反復 | S3: 持久走 | V3: シャ | Y3: 50m | AB3: 立幅 | AE3: ソフ | AH3: 全体 | AK3: 得点
A4: 校種 | B4: 校種名称 | C4: 性別番号 | D4: 性別 | E4: 学年 | F4: 学齢 | G4: 標本数 | H4: 平均値 | I4: 標準偏差 | J4: 標本数 | K4: 平均値 | L4: 標準偏差 | M4: 標本数 | N4: 平均値 | O4: 標準偏差 | P4: 標本数 | Q4: 平均値 | R4: 標準偏差 | S4: 標本数 | T4: 平均値 | U4: 標準偏差 | V4: 標本数 | W4: 平均値 | X4: 標準偏差 | Y4: 標本数 | Z4: 平均値 | AA4: 標準偏差 | AB4: 標本数 | AC4: 平均値 | AD4: 標準偏差 | AE4: 標本数 | AF4: 平均値 | AG4: 標準偏差 | AH4: 標本数 | AI4: 平均値 | AJ4: 標準偏差 | AK4: 握力 | AL4: 上体 | AM4: 長座 | AN4: 反復 | AO4: 持久 | AP4: シャ | AQ4: 50m | AR4: 立幅 | AS4: ソフ | AT4: 計
A5: 1 | B5: 小学校 | C5: 1 | D5: 男子 | E5: 1 | F5: 6 | AK5: 4 | AL5: 4 | AM5: 4 | AN5: 4 | AP5: 4 | AQ5: 3 | AR5: 3 | AS5: 3 | AT5: 29 | AU5: 1 | AV5: 11
A6: 1 | B6: 小学校 | C6: 1 | D6: 男子 | E6: 2 | F6: 7 | AK6: 4 | AL6: 5 | AM6: 4 | AN6: 5 | AP6: 5 | AQ6: 4 | AR6: 4 | AS6: 4 | AT6: 35 | AU6: 2 | AV6: 21
A7: 1 | B7: 小学校 | C7: 1 | D7: 男子 | E7: 3 | F7: 8 | AK7: 5 | AL7: 6 | AM7: 5 | AN7: 6 | AP7: 6 | AQ7: 5 | AR7: 5 | AS7: 5 | AT7: 43 | AU7: 3 | AV7: 31
A8: 1 | B8: 小学校 | C8: 1 | D8: 男子 | E8: 4 | F8: 9 | G8: 5417 | H8: 13.67 | I8: 3.14 | J8: 5439 | K8: 16.4 | L8: 5.79 | M8: 5434 | N8: 30.03 | O8: 7.59 | P8: 5402 | Q8: 35.44 | R8: 7.7 | S8: 0 | T8: 0 | U8: 0 | V8: 5281 | W8: 38.1 | X8: 18.91 | Y8: 5394 | Z8: 9.83 | AA8: 1.03 | AB8: 5402 | AC8: 143.71 | AD8: 19.94 | AE8: 5330 | AF8: 18.25 | AG8: 7.07 | AH8: 4841 | AI8: 46.29 | AJ8: 8.48 | AK8: 6 | AL8: 6 | AM8: 5 | AN8: 7 | AP8: 7 | AQ8: 6 | AR8: 6 | AS8: 6 | AT8: 49 | AU8: 4 | AV8: 41
A9: 1 | B9: 小学校 | C9: 1 | D9: 男子 | E9: 5 | F9: 10 | G9: 5575 | H9: 15.79 | I9: 3.78 | J9: 5547 | K9: 18.12 | L9: 5.94 | M9: 5530 | N9: 31.61 | O9: 8.06 | P9: 5521 | Q9: 39.64 | R9: 7.67 | S9: 0 | T9: 0 | U9: 0 | V9: 5406 | W9: 46.93 | X9: 20.83 | Y9: 5523 | Z9: 9.48 | AA9: 1.03 | AB9: 5533 | AC9: 150.45 | AD9: 21.5 | AE9: 5462 | AF9: 21.45 | AG9: 8.06 | AH9: 5046 | AI9: 51.47 | AJ9: 9.11 | AK9: 6 | AL9: 7 | AM9: 6 | AN9: 8 | AP9: 7 | AQ9: 7 | AR9: 6 | AS9: 7 | AT9: 54 | AU9: 5 | AV9: 51
A10: 1 | B10: 小学校 | C10: 1 | D10: 男子 | E10: 6 | F10: 11 | G10: 5621 | H10: 18.67 | I10: 4.77 | J10: 5580 | K10: 20.09 | L10: 5.49 | M10: 5575 | N10: 33.51 | O10: 8.02 | P10: 5555 | Q10: 42.79 | R10: 7.52 | S10: 0 | T10: 0 | U10: 0 | V10: 5395 | W10: 56.07 | X10: 22.35 | Y10: 5583 | Z10: 9.03 | AA10: 0.98 | AB10: 5540 | AC10: 162.04 | AD10: 22.76 | AE10: 5490 | AF10: 25.13 | AG10: 9.19 | AH10: 4963 | AI10: 57.35 | AJ10: 9.32 | AK10: 7 | AL10: 8 | AM10: 6 | AN10: 8 | AP10: 8 | AQ10: 7 | AR10: 7 | AS10: 7 | AT10: 58 | AU10: 6 | AV10: 61
A11: 1 | B11: 小学校 | C11: 2 | D11: 女子 | E11: 1 | F11: 6 | AK11: 3 | AL11: 4 | AM11: 4 | AN11: 4 | AP11: 4 | AQ11: 3 | AR11: 3 | AS11: 3 | AT11: 28 | AU11: 1 | AV11: 12
A12: 1 | B12: 小学校 | C12: 2 | D12: 女子 | E12: 2 | F12: 7 | AK12: 4 | AL12: 5 | AM12: 4 | AN12: 5 | AP12: 5 | AQ12: 4 | AR12: 4 | AS12: 4 | AT12: 35 | AU12: 2 | AV12: 22
A13: 1 | B13: 小学校 | C13: 2 | D13: 女子 | E13: 3 | F13: 8 | AK13: 5 | AL13: 6 | AM13: 5 | AN13: 6 | AP13: 6 | AQ13: 5 | AR13: 5 | AS13: 5 | AT13: 43 | AU13: 3 | AV13: 32
A14: 1 | B14: 小学校 | C14: 2 | D14: 女子 | E14: 4 | F14: 9 | G14: 5207 | H14: 13.17 | I14: 3.12 | J14: 5204 | K14: 15.67 | L14: 5.25 | M14: 5215 | N14: 33.54 | O14: 7.8 | P14: 5193 | Q14: 33.64 | R14: 7.21 | S14: 0 | T14: 0 | U14: 0 | V14: 5056 | W14: 30.68 | X14: 14.79 | Y14: 5181 | Z14: 10.1 | AA14: 0.94 | AB14: 5152 | AC14: 135.02 | AD14: 19.25 | AE14: 5104 | AF14: 11.49 | AG14: 4.37 | AH14: 4701 | AI14: 47.2 | AJ14: 8.46 | AK14: 6 | AL14: 7 | AM14: 5 | AN14: 7 | AP14: 7 | AQ14: 6 | AR14: 6 | AS14: 6 | AT14: 50 | AU14: 4 | AV14: 42
A15: 1 | B15: 小学校 | C15: 2 | D15: 女子 | E15: 5 | F15: 10 | G15: 5442 | H15: 15.67 | I15: 3.86 | J15: 5417 | K15: 17.39 | L15: 5.09 | M15: 5419 | N15: 35.92 | O15: 8.24 | P15: 5409 | Q15: 38.29 | R15: 7.13 | S15: 0 | T15: 0 | U15: 0 | V15: 5327 | W15: 38.95 | X15: 16.95 | Y15: 5369 | Z15: 9.67 | AA15: 0.9 | AB15: 5400 | AC15: 143.97 | AD15: 20.19 | AE15: 5317 | AF15: 13.93 | AG15: 5.29 | AH15: 5007 | AI15: 53.71 | AJ15: 8.81 | AK15: 6 | AL15: 8 | AM15: 6 | AN15: 8 | AP15: 8 | AQ15: 7 | AR15: 6 | AS15: 7 | AT15: 56 | AU15: 5 | AV15: 52
A16: 1 | B16: 小学校 | C16: 2 | D16: 女子 | E16: 6 | F16: 11 | G16: 5407 | H16: 18.23 | I16: 4.25 | J16: 5363 | K16: 18.42 | L16: 5.04 | M16: 5379 | N16: 38.04 | O16: 8.34 | P16: 5361 | Q16: 40.76 | R16: 6.94 | S16: 0 | T16: 0 | U16: 0 | V16: 5255 | W16: 44.11 | X16: 18.36 | Y16: 5365 | Z16: 9.34 | AA16: 0.87 | AB16: 5351 | AC16: 151.73 | AD16: 21.48 | AE16: 5264 | AF16: 15.79 | AG16: 6.09 | AH16: 4901 | AI16: 58.37 | AJ16: 9 | AK16: 7 | AL16: 8 | AM16: 7 | AN16: 8 | AP16: 8 | AQ16: 7 | AR16: 7 | AS16: 7 | AT16: 59 | AU16: 6 | AV16: 62

Sheet kenkijun
A1: 県平均値からの入力基準値 | E1: =ken!A1 -> 令和４年度版 | M1: 偏差
B2: 男子 | M2: 倍率
A3: 学年 | B3: 握力 | C3: 上体 | D3: 長座 | E3: 反復 | F3: 持久走 | G3: シャ | H3: 50m | I3: 立幅 | J3: ソフ | K3: 全体 | L3: 最高 | M3: 1.7
A4: 1 | B4: =IF((ken!H5+ken!I5*$M$3)<0,0,ken!H5+ken!I5*$M$3) -> 0 | C4: =IF((ken!K5+ken!L5*$M$3)<0,0,ken!K5+ken!L5*$M$3) -> 0 | D4: =IF((ken!N5+ken!O5*$M$3)<0,0,ken!N5+ken!O5*$M$3) -> 0 | E4: =IF((ken!Q5+ken!R5*$M$3)<0,0,ken!Q5+ken!R5*$M$3) -> 0 | G4: =IF((ken!W5+ken!X5*$M$3)<0,0,ken!W5+ken!X5*$M$3) -> 0 | H4: =IF((ken!Z5-ken!AA5*$M$3)<0,0,ken!Z5-ken!AA5*$M$3) -> 0 | I4: =IF((ken!AC5+ken!AD5*$M$3)<0,0,ken!AC5+ken!AD5*$M$3) -> 0 | J4: =IF((ken!AF5+ken!AG5*$M$3)<0,0,ken!AF5+ken!AG5*$M$3) -> 0 | K4: =IF((ken!AI5+ken!AJ5*$M$3)<0,0,ken!AI5+ken!AJ5*$M$3) -> 0
A5: 2 | B5: =IF((ken!H6+ken!I6*$M$3)<0,0,ken!H6+ken!I6*$M$3) -> 0 | C5: =IF((ken!K6+ken!L6*$M$3)<0,0,ken!K6+ken!L6*$M$3) -> 0 | D5: =IF((ken!N6+ken!O6*$M$3)<0,0,ken!N6+ken!O6*$M$3) -> 0 | E5: =IF((ken!Q6+ken!R6*$M$3)<0,0,ken!Q6+ken!R6*$M$3) -> 0 | G5: =IF((ken!W6+ken!X6*$M$3)<0,0,ken!W6+ken!X6*$M$3) -> 0 | H5: =IF((ken!Z6-ken!AA6*$M$3)<0,0,ken!Z6-ken!AA6*$M$3) -> 0 | I5: =IF((ken!AC6+ken!AD6*$M$3)<0,0,ken!AC6+ken!AD6*$M$3) -> 0 | J5: =IF((ken!AF6+ken!AG6*$M$3)<0,0,ken!AF6+ken!AG6*$M$3) -> 0 | K5: =IF((ken!AI6+ken!AJ6*$M$3)<0,0,ken!AI6+ken!AJ6*$M$3) -> 0
A6: 3 | B6: =IF((ken!H7+ken!I7*$M$3)<0,0,ken!H7+ken!I7*$M$3) -> 0 | C6: =IF((ken!K7+ken!L7*$M$3)<0,0,ken!K7+ken!L7*$M$3) -> 0 | D6: =IF((ken!N7+ken!O7*$M$3)<0,0,ken!N7+ken!O7*$M$3) -> 0 | E6: =IF((ken!Q7+ken!R7*$M$3)<0,0,ken!Q7+ken!R7*$M$3) -> 0 | G6: =IF((ken!W7+ken!X7*$M$3)<0,0,ken!W7+ken!X7*$M$3) -> 0 | H6: =IF((ken!Z7-ken!AA7*$M$3)<0,0,ken!Z7-ken!AA7*$M$3) -> 0 | I6: =IF((ken!AC7+ken!AD7*$M$3)<0,0,ken!AC7+ken!AD7*$M$3) -> 0 | J6: =IF((ken!AF7+ken!AG7*$M$3)<0,0,ken!AF7+ken!AG7*$M$3) -> 0 | K6: =IF((ken!AI7+ken!AJ7*$M$3)<0,0,ken!AI7+ken!AJ7*$M$3) -> 0
A7: 4 | B7: =IF((ken!H8+ken!I8*$M$3)<0,0,ken!H8+ken!I8*$M$3) -> 19.008 | C7: =IF((ken!K8+ken!L8*$M$3)<0,0,ken!K8+ken!L8*$M$3) -> 26.243 | D7: =IF((ken!N8+ken!O8*$M$3)<0,0,ken!N8+ken!O8*$M$3) -> 42.933 | E7: =IF((ken!Q8+ken!R8*$M$3)<0,0,ken!Q8+ken!R8*$M$3) -> 48.53 | G7: =IF((ken!W8+ken!X8*$M$3)<0,0,ken!W8+ken!X8*$M$3) -> 70.247 | H7: =IF((ken!Z8-ken!AA8*$M$3)<0,0,ken!Z8-ken!AA8*$M$3) -> 8.079 | I7: =IF((ken!AC8+ken!AD8*$M$3)<0,0,ken!AC8+ken!AD8*$M$3) -> 177.608 | J7: =IF((ken!AF8+ken!AG8*$M$3)<0,0,ken!AF8+ken!AG8*$M$3) -> 30.269 | K7: =IF((ken!AI8+ken!AJ8*$M$3)<0,0,ken!AI8+ken!AJ8*$M$3) -> 60.706
A8: 5 | B8: =IF((ken!H9+ken!I9*$M$3)<0,0,ken!H9+ken!I9*$M$3) -> 22.216 | C8: =IF((ken!K9+ken!L9*$M$3)<0,0,ken!K9+ken!L9*$M$3) -> 28.218 | D8: =IF((ken!N9+ken!O9*$M$3)<0,0,ken!N9+ken!O9*$M$3) -> 45.312 | E8: =IF((ken!Q9+ken!R9*$M$3)<0,0,ken!Q9+ken!R9*$M$3) -> 52.679 | G8: =IF((ken!W9+ken!X9*$M$3)<0,0,ken!W9+ken!X9*$M$3) -> 82.341 | H8: =IF((ken!Z9-ken!AA9*$M$3)<0,0,ken!Z9-ken!AA9*$M$3) -> 7.729 | I8: =IF((ken!AC9+ken!AD9*$M$3)<0,0,ken!AC9+ken!AD9*$M$3) -> 187 | J8: =IF((ken!AF9+ken!AG9*$M$3)<0,0,ken!AF9+ken!AG9*$M$3) -> 35.152 | K8: =IF((ken!AI9+ken!AJ9*$M$3)<0,0,ken!AI9+ken!AJ9*$M$3) -> 66.957 | M8: 偏差
A9: 6 | B9: =IF((ken!H10+ken!I10*$M$3)<0,0,ken!H10+ken!I10*$M$3) -> 26.779 | C9: =IF((ken!K10+ken!L10*$M$3)<0,0,ken!K10+ken!L10*$M$3) -> 29.423 | D9: =IF((ken!N10+ken!O10*$M$3)<0,0,ken!N10+ken!O10*$M$3) -> 47.144 | E9: =IF((ken!Q10+ken!R10*$M$3)<0,0,ken!Q10+ken!R10*$M$3) -> 55.574 | G9: =IF((ken!W10+ken!X10*$M$3)<0,0,ken!W10+ken!X10*$M$3) -> 94.065 | H9: =IF((ken!Z10-ken!AA10*$M$3)<0,0,ken!Z10-ken!AA10*$M$3) -> 7.364 | I9: =IF((ken!AC10+ken!AD10*$M$3)<0,0,ken!AC10+ken!AD10*$M$3) -> 200.732 | J9: =IF((ken!AF10+ken!AG10*$M$3)<0,0,ken!AF10+ken!AG10*$M$3) -> 40.753 | K9: =IF((ken!AI10+ken!AJ10*$M$3)<0,0,ken!AI10+ken!AJ10*$M$3) -> 73.194 | M9: 倍率
A10: 1 | B10: =IF((ken!H5-ken!I5*$M$10)<0,0,ken!H5-ken!I5*$M$10) -> 0 | C10: =IF((ken!K5-ken!L5*$M$10)<0,0,ken!K5-ken!L5*$M$10) -> 0 | D10: =IF((ken!N5-ken!O5*$M$10)<0,0,ken!N5-ken!O5*$M$10) -> 0 | E10: =IF((ken!Q5-ken!R5*$M$10)<0,0,ken!Q5-ken!R5*$M$10) -> 0 | G10: =IF((ken!W5-ken!X5*$M$10)<0,0,ken!W5-ken!X5*$M$10) -> 0 | H10: =IF((ken!Z5+ken!AA5*$M$10)<0,0,ken!Z5+ken!AA5*$M$10) -> 0 | I10: =IF((ken!AC5-ken!AD5*$M$10)<0,0,ken!AC5-ken!AD5*$M$10) -> 0 | J10: =IF((ken!AF5-ken!AG5*$M$10)<0,0,ken!AF5-ken!AG5*$M$10) -> 0 | K10: =IF((ken!AI5-ken!AJ5*$M$10)<0,0,ken!AI5-ken!AJ5*$M$10) -> 0 | L10: 最低 | M10: 2
A11: 2 | B11: =IF((ken!H6-ken!I6*$M$10)<0,0,ken!H6-ken!I6*$M$10) -> 0 | C11: =IF((ken!K6-ken!L6*$M$10)<0,0,ken!K6-ken!L6*$M$10) -> 0 | D11: =IF((ken!N6-ken!O6*$M$10)<0,0,ken!N6-ken!O6*$M$10) -> 0 | E11: =IF((ken!Q6-ken!R6*$M$10)<0,0,ken!Q6-ken!R6*$M$10) -> 0 | G11: =IF((ken!W6-ken!X6*$M$10)<0,0,ken!W6-ken!X6*$M$10) -> 0 | H11: =IF((ken!Z6+ken!AA6*$M$10)<0,0,ken!Z6+ken!AA6*$M$10) -> 0 | I11: =IF((ken!AC6-ken!AD6*$M$10)<0,0,ken!AC6-ken!AD6*$M$10) -> 0 | J11: =IF((ken!AF6-ken!AG6*$M$10)<0,0,ken!AF6-ken!AG6*$M$10) -> 0 | K11: =IF((ken!AI6-ken!AJ6*$M$10)<0,0,ken!AI6-ken!AJ6*$M$10) -> 0
A12: 3 | B12: =IF((ken!H7-ken!I7*$M$10)<0,0,ken!H7-ken!I7*$M$10) -> 0 | C12: =IF((ken!K7-ken!L7*$M$10)<0,0,ken!K7-ken!L7*$M$10) -> 0 | D12: =IF((ken!N7-ken!O7*$M$10)<0,0,ken!N7-ken!O7*$M$10) -> 0 | E12: =IF((ken!Q7-ken!R7*$M$10)<0,0,ken!Q7-ken!R7*$M$10) -> 0 | G12: =IF((ken!W7-ken!X7*$M$10)<0,0,ken!W7-ken!X7*$M$10) -> 0 | H12: =IF((ken!Z7+ken!AA7*$M$10)<0,0,ken!Z7+ken!AA7*$M$10) -> 0 | I12: =IF((ken!AC7-ken!AD7*$M$10)<0,0,ken!AC7-ken!AD7*$M$10) -> 0 | J12: =IF((ken!AF7-ken!AG7*$M$10)<0,0,ken!AF7-ken!AG7*$M$10) -> 0 | K12: =IF((ken!AI7-ken!AJ7*$M$10)<0,0,ken!AI7-ken!AJ7*$M$10) -> 0
A13: 4 | B13: =IF((ken!H8-ken!I8*$M$10)<0,0,ken!H8-ken!I8*$M$10) -> 7.39 | C13: =IF((ken!K8-ken!L8*$M$10)<0,0,ken!K8-ken!L8*$M$10) -> 4.82 | D13: =IF((ken!N8-ken!O8*$M$10)<0,0,ken!N8-ken!O8*$M$10) -> 14.85 | E13: =IF((ken!Q8-ken!R8*$M$10)<0,0,ken!Q8-ken!R8*$M$10) -> 20.04 | G13: =IF((ken!W8-ken!X8*$M$10)<0,0,ken!W8-ken!X8*$M$10) -> 0.28 | H13: =IF((ken!Z8+ken!AA8*$M$10)<0,0,ken!Z8+ken!AA8*$M$10) -> 11.89 | I13: =IF((ken!AC8-ken!AD8*$M$10)<0,0,ken!AC8-ken!AD8*$M$10) -> 103.83 | J13: =IF((ken!AF8-ken!AG8*$M$10)<0,0,ken!AF8-ken!AG8*$M$10) -> 4.11 | K13: =IF((ken!AI8-ken!AJ8*$M$10)<0,0,ken!AI8-ken!AJ8*$M$10) -> 29.33
A14: 5 | B14: =IF((ken!H9-ken!I9*$M$10)<0,0,ken!H9-ken!I9*$M$10) -> 8.23 | C14: =IF((ken!K9-ken!L9*$M$10)<0,0,ken!K9-ken!L9*$M$10) -> 6.24 | D14: =IF((ken!N9-ken!O9*$M$10)<0,0,ken!N9-ken!O9*$M$10) -> 15.49 | E14: =IF((ken!Q9-ken!R9*$M$10)<0,0,ken!Q9-ken!R9*$M$10) -> 24.3 | G14: =IF((ken!W9-ken!X9*$M$10)<0,0,ken!W9-ken!X9*$M$10) -> 5.27 | H14: =IF((ken!Z9+ken!AA9*$M$10)<0,0,ken!Z9+ken!AA9*$M$10) -> 11.54 | I14: =IF((ken!AC9-ken!AD9*$M$10)<0,0,ken!AC9-ken!AD9*$M$10) -> 107.45 | J14: =IF((ken!AF9-ken!AG9*$M$10)<0,0,ken!AF9-ken!AG9*$M$10) -> 5.33 | K14: =IF((ken!AI9-ken!AJ9*$M$10)<0,0,ken!AI9-ken!AJ9*$M$10) -> 33.25
A15: 6 | B15: =IF((ken!H10-ken!I10*$M$10)<0,0,ken!H10-ken!I10*$M$10) -> 9.13 | C15: =IF((ken!K10-ken!L10*$M$10)<0,0,ken!K10-ken!L10*$M$10) -> 9.11 | D15: =IF((ken!N10-ken!O10*$M$10)<0,0,ken!N10-ken!O10*$M$10) -> 17.47 | E15: =IF((ken!Q10-ken!R10*$M$10)<0,0,ken!Q10-ken!R10*$M$10) -> 27.75 | G15: =IF((ken!W10-ken!X10*$M$10)<0,0,ken!W10-ken!X10*$M$10) -> 11.37 | H15: =IF((ken!Z10+ken!AA10*$M$10)<0,0,ken!Z10+ken!AA10*$M$10) -> 10.99 | I15: =IF((ken!AC10-ken!AD10*$M$10)<0,0,ken!AC10-ken!AD10*$M$10) -> 116.52 | J15: =IF((ken!AF10-ken!AG10*$M$10)<0,0,ken!AF10-ken!AG10*$M$10) -> 6.75 | K15: =IF((ken!AI10-ken!AJ10*$M$10)<0,0,ken!AI10-ken!AJ10*$M$10) -> 38.71
A16: 1 | B16: 2 | C16: 3 | D16: 4 | E16: 5 | F16: 6 | G16: 7 | H16: 8 | I16: 9 | J16: 10 | K16: 11 | M16: 偏差
B17: 女子 | M17: 倍率
A18: 学年 | B18: 握力 | C18: 上体 | D18: 長座 | E18: 反復 | F18: 持久走 | G18: シャ | H18: 50m | I18: 立幅 | J18: ソフ | K18: 全体 | L18: 最高 | M18: 1.7
A19: 1 | B19: =IF((ken!H11+ken!I11*$M$3)<0,0,ken!H11+ken!I11*$M$3) -> 0 | C19: =IF((ken!K11+ken!L11*$M$3)<0,0,ken!K11+ken!L11*$M$3) -> 0 | D19: =IF((ken!N11+ken!O11*$M$3)<0,0,ken!N11+ken!O11*$M$3) -> 0 | E19: =IF((ken!Q11+ken!R11*$M$3)<0,0,ken!Q11+ken!R11*$M$3) -> 0 | G19: =IF((ken!W11+ken!X11*$M$3)<0,0,ken!W11+ken!X11*$M$3) -> 0 | H19: =IF((ken!Z11-ken!AA11*$M$3)<0,0,ken!Z11-ken!AA11*$M$3) -> 0 | I19: =IF((ken!AC11+ken!AD11*$M$3)<0,0,ken!AC11+ken!AD11*$M$3) -> 0 | J19: =IF((ken!AF11+ken!AG11*$M$3)<0,0,ken!AF11+ken!AG11*$M$3) -> 0 | K19: =IF((ken!AI11+ken!AJ11*$M$3)<0,0,ken!AI11+ken!AJ11*$M$3) -> 0
A20: 2 | B20: =IF((ken!H12+ken!I12*$M$3)<0,0,ken!H12+ken!I12*$M$3) -> 0 | C20: =IF((ken!K12+ken!L12*$M$3)<0,0,ken!K12+ken!L12*$M$3) -> 0 | D20: =IF((ken!N12+ken!O12*$M$3)<0,0,ken!N12+ken!O12*$M$3) -> 0 | E20: =IF((ken!Q12+ken!R12*$M$3)<0,0,ken!Q12+ken!R12*$M$3) -> 0 | G20: =IF((ken!W12+ken!X12*$M$3)<0,0,ken!W12+ken!X12*$M$3) -> 0 | H20: =IF((ken!Z12-ken!AA12*$M$3)<0,0,ken!Z12-ken!AA12*$M$3) -> 0 | I20: =IF((ken!AC12+ken!AD12*$M$3)<0,0,ken!AC12+ken!AD12*$M$3) -> 0 | J20: =IF((ken!AF12+ken!AG12*$M$3)<0,0,ken!AF12+ken!AG12*$M$3) -> 0 | K20: =IF((ken!AI12+ken!AJ12*$M$3)<0,0,ken!AI12+ken!AJ12*$M$3) -> 0
A21: 3 | B21: =IF((ken!H13+ken!I13*$M$3)<0,0,ken!H13+ken!I13*$M$3) -> 0 | C21: =IF((ken!K13+ken!L13*$M$3)<0,0,ken!K13+ken!L13*$M$3) -> 0 | D21: =IF((ken!N13+ken!O13*$M$3)<0,0,ken!N13+ken!O13*$M$3) -> 0 | E21: =IF((ken!Q13+ken!R13*$M$3)<0,0,ken!Q13+ken!R13*$M$3) -> 0 | G21: =IF((ken!W13+ken!X13*$M$3)<0,0,ken!W13+ken!X13*$M$3) -> 0 | H21: =IF((ken!Z13-ken!AA13*$M$3)<0,0,ken!Z13-ken!AA13*$M$3) -> 0 | I21: =IF((ken!AC13+ken!AD13*$M$3)<0,0,ken!AC13+ken!AD13*$M$3) -> 0 | J21: =IF((ken!AF13+ken!AG13*$M$3)<0,0,ken!AF13+ken!AG13*$M$3) -> 0 | K21: =IF((ken!AI13+ken!AJ13*$M$3)<0,0,ken!AI13+ken!AJ13*$M$3) -> 0
A22: 4 | B22: =IF((ken!H14+ken!I14*$M$3)<0,0,ken!H14+ken!I14*$M$3) -> 18.474 | C22: =IF((ken!K14+ken!L14*$M$3)<0,0,ken!K14+ken!L14*$M$3) -> 24.595 | D22: =IF((ken!N14+ken!O14*$M$3)<0,0,ken!N14+ken!O14*$M$3) -> 46.8 | E22: =IF((ken!Q14+ken!R14*$M$3)<0,0,ken!Q14+ken!R14*$M$3) -> 45.897 | G22: =IF((ken!W14+ken!X14*$M$3)<0,0,ken!W14+ken!X14*$M$3) -> 55.823 | H22: =IF((ken!Z14-ken!AA14*$M$3)<0,0,ken!Z14-ken!AA14*$M$3) -> 8.502 | I22: =IF((ken!AC14+ken!AD14*$M$3)<0,0,ken!AC14+ken!AD14*$M$3) -> 167.745 | J22: =IF((ken!AF14+ken!AG14*$M$3)<0,0,ken!AF14+ken!AG14*$M$3) -> 18.919 | K22: =IF((ken!AI14+ken!AJ14*$M$3)<0,0,ken!AI14+ken!AJ14*$M$3) -> 61.582
A23: 5 | B23: =IF((ken!H15+ken!I15*$M$3)<0,0,ken!H15+ken!I15*$M$3) -> 22.232 | C23: =IF((ken!K15+ken!L15*$M$3)<0,0,ken!K15+ken!L15*$M$3) -> 26.043 | D23: =IF((ken!N15+ken!O15*$M$3)<0,0,ken!N15+ken!O15*$M$3) -> 49.928 | E23: =IF((ken!Q15+ken!R15*$M$3)<0,0,ken!Q15+ken!R15*$M$3) -> 50.411 | G23: =IF((ken!W15+ken!X15*$M$3)<0,0,ken!W15+ken!X15*$M$3) -> 67.765 | H23: =IF((ken!Z15-ken!AA15*$M$3)<0,0,ken!Z15-ken!AA15*$M$3) -> 8.14 | I23: =IF((ken!AC15+ken!AD15*$M$3)<0,0,ken!AC15+ken!AD15*$M$3) -> 178.293 | J23: =IF((ken!AF15+ken!AG15*$M$3)<0,0,ken!AF15+ken!AG15*$M$3) -> 22.923 | K23: =IF((ken!AI15+ken!AJ15*$M$3)<0,0,ken!AI15+ken!AJ15*$M$3) -> 68.687 | M23: 偏差
A24: 6 | B24: =IF((ken!H16+ken!I16*$M$3)<0,0,ken!H16+ken!I16*$M$3) -> 25.455 | C24: =IF((ken!K16+ken!L16*$M$3)<0,0,ken!K16+ken!L16*$M$3) -> 26.988 | D24: =IF((ken!N16+ken!O16*$M$3)<0,0,ken!N16+ken!O16*$M$3) -> 52.218 | E24: =IF((ken!Q16+ken!R16*$M$3)<0,0,ken!Q16+ken!R16*$M$3) -> 52.558 | G24: =IF((ken!W16+ken!X16*$M$3)<0,0,ken!W16+ken!X16*$M$3) -> 75.322 | H24: =IF((ken!Z16-ken!AA16*$M$3)<0,0,ken!Z16-ken!AA16*$M$3) -> 7.861 | I24: =IF((ken!AC16+ken!AD16*$M$3)<0,0,ken!AC16+ken!AD16*$M$3) -> 188.246 | J24: =IF((ken!AF16+ken!AG16*$M$3)<0,0,ken!AF16+ken!AG16*$M$3) -> 26.143 | K24: =IF((ken!AI16+ken!AJ16*$M$3)<0,0,ken!AI16+ken!AJ16*$M$3) -> 73.67 | M24: 倍率
A25: 1 | B25: =IF((ken!H11-ken!I11*$M$10)<0,0,ken!H11-ken!I11*$M$10) -> 0 | C25: =IF((ken!K11-ken!L11*$M$10)<0,0,ken!K11-ken!L11*$M$10) -> 0 | D25: =IF((ken!N11-ken!O11*$M$10)<0,0,ken!N11-ken!O11*$M$10) -> 0 | E25: =IF((ken!Q11-ken!R11*$M$10)<0,0,ken!Q11-ken!R11*$M$10) -> 0 | G25: =IF((ken!W11-ken!X11*$M$10)<0,0,ken!W11-ken!X11*$M$10) -> 0 | H25: =IF((ken!Z11+ken!AA11*$M$10)<0,0,ken!Z11+ken!AA11*$M$10) -> 0 | I25: =IF((ken!AC11-ken!AD11*$M$10)<0,0,ken!AC11-ken!AD11*$M$10) -> 0 | J25: =IF((ken!AF11-ken!AG11*$M$10)<0,0,ken!AF11-ken!AG11*$M$10) -> 0 | K25: =IF((ken!AI11-ken!AJ11*$M$10)<0,0,ken!AI11-ken!AJ11*$M$10) -> 0 | L25: 最低 | M25: 2
A26: 2 | B26: =IF((ken!H12-ken!I12*$M$10)<0,0,ken!H12-ken!I12*$M$10) -> 0 | C26: =IF((ken!K12-ken!L12*$M$10)<0,0,ken!K12-ken!L12*$M$10) -> 0 | D26: =IF((ken!N12-ken!O12*$M$10)<0,0,ken!N12-ken!O12*$M$10) -> 0 | E26: =IF((ken!Q12-ken!R12*$M$10)<0,0,ken!Q12-ken!R12*$M$10) -> 0 | G26: =IF((ken!W12-ken!X12*$M$10)<0,0,ken!W12-ken!X12*$M$10) -> 0 | H26: =IF((ken!Z12+ken!AA12*$M$10)<0,0,ken!Z12+ken!AA12*$M$10) -> 0 | I26: =IF((ken!AC12-ken!AD12*$M$10)<0,0,ken!AC12-ken!AD12*$M$10) -> 0 | J26: =IF((ken!AF12-ken!AG12*$M$10)<0,0,ken!AF12-ken!AG12*$M$10) -> 0 | K26: =IF((ken!AI12-ken!AJ12*$M$10)<0,0,ken!AI12-ken!AJ12*$M$10) -> 0
A27: 3 | B27: =IF((ken!H13-ken!I13*$M$10)<0,0,ken!H13-ken!I13*$M$10) -> 0 | C27: =IF((ken!K13-ken!L13*$M$10)<0,0,ken!K13-ken!L13*$M$10) -> 0 | D27: =IF((ken!N13-ken!O13*$M$10)<0,0,ken!N13-ken!O13*$M$10) -> 0 | E27: =IF((ken!Q13-ken!R13*$M$10)<0,0,ken!Q13-ken!R13*$M$10) -> 0 | G27: =IF((ken!W13-ken!X13*$M$10)<0,0,ken!W13-ken!X13*$M$10) -> 0 | H27: =IF((ken!Z13+ken!AA13*$M$10)<0,0,ken!Z13+ken!AA13*$M$10) -> 0 | I27: =IF((ken!AC13-ken!AD13*$M$10)<0,0,ken!AC13-ken!AD13*$M$10) -> 0 | J27: =IF((ken!AF13-ken!AG13*$M$10)<0,0,ken!AF13-ken!AG13*$M$10) -> 0 | K27: =IF((ken!AI13-ken!AJ13*$M$10)<0,0,ken!AI13-ken!AJ13*$M$10) -> 0
A28: 4 | B28: =IF((ken!H14-ken!I14*$M$10)<0,0,ken!H14-ken!I14*$M$10) -> 6.93 | C28: =IF((ken!K14-ken!L14*$M$10)<0,0,ken!K14-ken!L14*$M$10) -> 5.17 | D28: =IF((ken!N14-ken!O14*$M$10)<0,0,ken!N14-ken!O14*$M$10) -> 17.94 | E28: =IF((ken!Q14-ken!R14*$M$10)<0,0,ken!Q14-ken!R14*$M$10) -> 19.22 | G28: =IF((ken!W14-ken!X14*$M$10)<0,0,ken!W14-ken!X14*$M$10) -> 1.1 | H28: =IF((ken!Z14+ken!AA14*$M$10)<0,0,ken!Z14+ken!AA14*$M$10) -> 11.98 | I28: =IF((ken!AC14-ken!AD14*$M$10)<0,0,ken!AC14-ken!AD14*$M$10) -> 96.52 | J28: =IF((ken!AF14-ken!AG14*$M$10)<0,0,ken!AF14-ken!AG14*$M$10) -> 2.75 | K28: =IF((ken!AI14-ken!AJ14*$M$10)<0,0,ken!AI14-ken!AJ14*$M$10) -> 30.28
A29: 5 | B29: =IF((ken!H15-ken!I15*$M$10)<0,0,ken!H15-ken!I15*$M$10) -> 7.95 | C29: =IF((ken!K15-ken!L15*$M$10)<0,0,ken!K15-ken!L15*$M$10) -> 7.21 | D29: =IF((ken!N15-ken!O15*$M$10)<0,0,ken!N15-ken!O15*$M$10) -> 19.44 | E29: =IF((ken!Q15-ken!R15*$M$10)<0,0,ken!Q15-ken!R15*$M$10) -> 24.03 | G29: =IF((ken!W15-ken!X15*$M$10)<0,0,ken!W15-ken!X15*$M$10) -> 5.05 | H29: =IF((ken!Z15+ken!AA15*$M$10)<0,0,ken!Z15+ken!AA15*$M$10) -> 11.47 | I29: =IF((ken!AC15-ken!AD15*$M$10)<0,0,ken!AC15-ken!AD15*$M$10) -> 103.59 | J29: =IF((ken!AF15-ken!AG15*$M$10)<0,0,ken!AF15-ken!AG15*$M$10) -> 3.35 | K29: =IF((ken!AI15-ken!AJ15*$M$10)<0,0,ken!AI15-ken!AJ15*$M$10) -> 36.09
A30: 6 | B30: =IF((ken!H16-ken!I16*$M$10)<0,0,ken!H16-ken!I16*$M$10) -> 9.73 | C30: =IF((ken!K16-ken!L16*$M$10)<0,0,ken!K16-ken!L16*$M$10) -> 8.34 | D30: =IF((ken!N16-ken!O16*$M$10)<0,0,ken!N16-ken!O16*$M$10) -> 21.36 | E30: =IF((ken!Q16-ken!R16*$M$10)<0,0,ken!Q16-ken!R16*$M$10) -> 26.88 | G30: =IF((ken!W16-ken!X16*$M$10)<0,0,ken!W16-ken!X16*$M$10) -> 7.39 | H30: =IF((ken!Z16+ken!AA16*$M$10)<0,0,ken!Z16+ken!AA16*$M$10) -> 11.08 | I30: =IF((ken!AC16-ken!AD16*$M$10)<0,0,ken!AC16-ken!AD16*$M$10) -> 108.77 | J30: =IF((ken!AF16-ken!AG16*$M$10)<0,0,ken!AF16-ken!AG16*$M$10) -> 3.61 | K30: =IF((ken!AI16-ken!AJ16*$M$10)<0,0,ken!AI16-ken!AJ16*$M$10) -> 40.37
